Workbook

Sheet сводная форма
A1: Анализ бюджета | B1: Зеленоградский | E1: по состоянию на | G1: 2022-10-01 | K1: 27710000
B2: (наименование МО) | G2: (отчетная дата)
E3: Да | F3: Нет | J3: тыс. руб.
A4: Наименование | B4: Исполнено за отч. год | C4: Уточненный бюджет на тек. год | D4: Динамика плана тек. года к исполнению отчетного, % | E4: Исполнено на аналог. дату отч. года | F4: Исполнено на отч. дату | G4: Исполнение плана, % | H4: К соответствующему периоду отчетного года, % | I4: Принятый бюджет на 2023 год | J4: Принятый бюджет на 2024 год
A5: 1. ДОХОДЫ, в том числе: | B5: =B7+B37 -> 1973189.326 | C5: =C7+C37 -> 2411729.448 | D5: =IF(C5<>0,IFERROR(C5/B5,"-"),"-") -> 1.222249389 | E5: =E7+E37 -> 1177294.075 | F5: =F7+F37 -> 1638264.232 | G5: =IF(F5<>0,IFERROR(F5/C5,"-"),"-") -> 0.6792902218 | H5: =IF(F5<>0,IFERROR(F5/E5,"-"),"-") -> 1.391550562 | I5: =I7+I37 -> 1373589 | J5: =J7+J37 -> 1344623
A6: СОБСТВЕННЫЕ ДОХОДЫ (без учета субсидий) | B6: =B7+B39+B40+B53 -> 1123622.994 | C6: =C7+C39+C40+C53 -> 1297563.156 | D6: 1.154802957 | E6: =E7+E39+E40+E53 -> 777164.3231 | F6: =F7+F39+F40+F53 -> 909681.0716 | G6: 0.7010688208 | H6: 1.170513165 | I6: =I7+I39+I40+I53 -> 893017 | J6: =J7+J39+J40+J53 -> 870799
A7: НАЛОГОВЫЕ И НЕНАЛОГОВЫЕ ДОХОДЫ | B7: =B9+B26 -> 994836.3351 | C7: =C9+C26 -> 1146100 | D7: 1.152048794 | E7: =E9+E26 -> 674070.1957 | F7: =F9+F26 -> 770897.0004 | G7: 0.6726262982 | H7: 1.143644987 | I7: =I9+I26 -> 816000 | J7: =J9+J26 -> 845500
A8: ННД и дотации на выравнивание БО | B8: =B7+B39 -> 1059278.335 | C8: =C7+C39 -> 1146100 | D8: 1.081963033 | E8: =E7+E39 -> 723046.1157 | F8: =F7+F39 -> 770897.0004 | G8: 0.6726262982 | H8: 1.066179575 | I8: =I7+I39 -> 869129 | J8: =J7+J39 -> 845500
A9: Налоговые доходы, всего: | B9: =B11+B17+B18+B19+B20+B21+B22+B23+B24+B25 -> 558624.124 | C9: =C11+C17+C18+C19+C20+C21+C22+C23+C24+C25 -> 751100 | D9: 1.344553462 | E9: =E11+E17+E18+E19+E20+E21+E22+E23+E24+E25 -> 355017.6542 | F9: =F11+F17+F18+F19+F20+F21+F22+F23+F24+F25 -> 517071.0925 | G9: 0.688418443 | H9: 1.456465858 | I9: =I11+I17+I18+I19+I20+I21+I22+I23+I24+I25 -> 589900 | J9: =J11+J17+J18+J19+J20+J21+J22+J23+J24+J25 -> 616800
A10: Налоговые доходы, без доп.норматива по НДФЛ: | B10: =B9-B14 -> 543877.6475 | C10: =C9-C14 -> 647673.1707 | D10: 1.190843517 | E10: =E9-E14 -> 344887.051 | F10: =F9-F14 -> 437400.8678 | G10: 0.6753419588 | H10: 1.268243811 | I10: =I9-I14 -> 589900 | J10: =J9-J14 -> 599925
A11: - НДФЛ, всего: | B11: 235943.6241 | C11: 385500 | D11: 1.633864875 | E11: 162089.6514 | F11: 296952.6558 | G11: 0.7703052031 | H11: 1.832027235 | I11: 250000 | J11: 270000
A12: контенгент по НДФЛ | B12: =IFERROR(B11*100/(B15+B16),"-") -> 737323.8253 | C12: =IFERROR(C11*100/(C15+C16),"-") -> 940243.9024 | D12: 1.27521161 | E12: =IFERROR(E11*100/(E15+E16),"-") -> 506530.1606 | F12: =IFERROR(F11*100/(F15+F16),"-") -> 724274.7702 | G12: 0.7703052031 | H12: 1.429874915 | I12: =IFERROR(I11*100/(I15+I16),"-") -> 833333.3333 | J12: =IFERROR(J11*100/(J15+J16),"-") -> 843750
A13: дотации заменённые на доп.норматив | B13: 11029 | C13: 79076 | D13: =C14-C13 -> 24350.82927 | E13: =IF(B14<>0,IFERROR(E14/B14*B13,0),0) -> 7576.753863 | F13: =IF(B14<>0,IFERROR(E14/B14*C13,0),0) -> 54323.99932 | H13: =IFERROR(F14-F13,0) -> 25346.22541 | I13: 0 | J13: 17407
A14: поступление по допнормативу по НДФЛ | B14: =IFERROR((B11/(B15+B16))*B16,0) -> 14746.47651 | C14: =IFERROR((C11/(C15+C16))*C16,0) -> 103426.8293 | E14: =IFERROR((E11/(E15+E16))*E16,0) -> 10130.60321 | F14: =IFERROR((F11/(F15+F16))*F16,0) -> 79670.22473 | I14: =IFERROR((I11/(I15+I16))*I16,0) -> 0 | J14: =IFERROR((J11/(J15+J16))*J16,0) -> 16875
A15: норматив по БК РФ и ЗКО "О МБО", % | B15: 30 | C15: 30 | D15: =IF(C15<>0,IFERROR(C15/B15,"-"),"-") -> 1 | E15: 30 | F15: 30 | G15: =IF(F15<>0,IFERROR(F15/C15,"-"),"-") -> 1 | H15: =IF(F15<>0,IFERROR(F15/E15,"-"),"-") -> 1 | I15: 30 | J15: 30
A16: дополнительный норматив, % | B16: 2 | C16: 11 | D16: 5.5 | E16: 2 | F16: 11 | G16: 1 | H16: 5.5 | J16: 2
A17: - УСНО | B17: 67235.3741 | C17: 91100 | D17: 1.35494152 | E17: 46722.5195 | F17: 70191.9177 | G17: 0.7704930593 | H17: 1.502314482 | I17: 73300 | J17: 75500
A18: - патент | B18: 14422.7131 | C18: 15000 | D18: 1.040026235 | E18: 9421.6048 | F18: 12471.9672 | G18: 0.83146448 | H18: 1.323762508 | I18: 12300 | J18: 13000
A19: - ЕСХН | B19: 5162.6656 | C19: 9000 | D19: 1.743285484 | E19: 4104.4216 | F19: 17224.8976 | G19: 1.913877511 | H19: 4.196668685 | I19: 1000 | J19: 1000
A20: - ЕНВД | B20: 5249.7913 | C20: 0 | D20: - | E20: 5211.6014 | F20: -149.8278 | G20: - | H20: -0.02874889856
A21: - налог на имущество физических лиц | B21: 46035.457 | C21: 47000 | D21: 1.020952176 | E21: 8183.0925 | F21: 9974.8994 | G21: 0.2122319021 | H21: 1.218964517 | I21: 48300 | J21: 49100
A22: - налог на имущество организаций | B22: 39176.398 | C22: 42000 | D22: 1.072074058 | E22: 29564.72 | F22: 28006.5986 | G22: 0.6668237762 | H22: 0.9472979484 | I22: 43000 | J22: 44200
A23: - земельный налог | B23: 123015.6299 | C23: 135000 | D23: 1.097421524 | E23: 73829.8363 | F23: 57855.2392 | G23: 0.4285573274 | H23: 0.7836295203 | I23: 140000 | J23: 142000
A24: - акцизы на ГСМ | B24: 16967.9492 | C24: 20000 | D24: 1.178692826 | E24: 12344.9856 | F24: 19622.1155 | G24: 0.981105775 | H24: 1.589480631 | I24: 15000 | J24: 15000
A25: - прочие налоговые доходы | B25: 5414.5217 | C25: 6500 | D25: 1.200475381 | E25: 3545.2211 | F25: 4920.6293 | G25: 0.7570198923 | H25: 1.387961191 | I25: 7000 | J25: 7000
A26: Неналоговые доходы, всего: | B26: =B27+B30+B31+B32+B33+B34+B36+B35 -> 436212.2111 | C26: =C27+C30+C31+C32+C33+C34+C36+C35 -> 395000 | D26: 0.9055225644 | E26: =E27+E30+E31+E32+E33+E34+E36+E35 -> 319052.5415 | F26: =F27+F30+F31+F32+F33+F34+F36+F35 -> 253825.9079 | G26: 0.6425972352 | H26: 0.7955614668 | I26: =I27+I30+I31+I32+I33+I34+I36+I35 -> 226100 | J26: =J27+J30+J31+J32+J33+J34+J36+J35 -> 228700
A27: - доходы, от аренды земли и продажи права аренды | B27: 281222.3802 | C27: 270000 | D27: 0.9600942848 | E27: 207929.2414 | F27: 139221.0114 | G27: 0.5156333756 | H27: 0.6695595601 | I27: 118000 | J27: 118000
A28: аренда земли | B28: 80907 | C28: 237000 | D28: 2.929289184 | E28: 53799 | F28: 80657.58536 | G28: 0.3403273644 | H28: 1.499239491 | I28: 118000 | J28: 118000
A29: продажа права аренды | B29: 200315 | C29: 33000 | D29: 0.1647405337 | E29: 154130 | F29: 58563.426 | G29: 1.774649273 | H29: 0.3799612405
A30: - доходы от использования имущества | B30: 1948.4912 | C30: 1500 | D30: 0.7698264175 | E30: 1271.5136 | F30: 1949.4231 | G30: 1.2996154 | H30: 1.533151592 | I30: 1500 | J30: 1500
A31: - доходы от продажи имущества | B31: 1951 | C31: 1500 | D31: 0.7688364941 | E31: 450 | F31: 1221.7 | G31: 0.8144666667 | H31: 2.714888889 | I31: 1500 | J31: 1500
A32: - доходы от продажи земли | B32: 72244.753 | C32: 27366 | D32: 0.3787956753 | E32: 50603.0757 | F32: 29763.9706 | G32: 1.087625908 | H32: 0.5881850103 | I32: 40000 | J32: 40000
A33: - доходы от оказания платных услуг (работ) | B33: 4114.7709 | C33: 0 | D33: - | E33: 95.7248 | F33: 3.8693 | G33: - | H33: 0.0404210821
A34: - административные штрафы | B34: 27195.8166 | C34: 13000 | D34: 0.4780146958 | E34: 20983.6803 | F34: 12335.6557 | G34: 0.9488965923 | H34: 0.587869026 | I34: 14000 | J34: 14500
A35: - платежи при использовании природных ресурсов | B35: 34871.1628 | C35: 36000 | D35: 1.032371654 | E35: 28503.501 | F35: 25285.6151 | G35: 0.7023781972 | H35: 0.887105591 | I35: 37100 | J35: 38200
A36: - прочие неналоговые доходы | B36: 12663.8364 | C36: 45634 | D36: 3.603489382 | E36: 9215.8047 | F36: 44044.6627 | G36: 0.96517208 | H36: 4.779253048 | I36: 14000 | J36: 15000
A37: ИТОГО БЕЗВОЗМЕЗДНЫЕ ПОСТУПЛЕНИЯ | B37: =B38++B55+B56 -> 978352.9911 | C37: =C38+C55+C56 -> 1265629.448 | D37: 1.293632728 | E37: =E38+E55+E56 -> 503223.8793 | F37: =F38+F55+F56 -> 867367.2315 | G37: 0.6853247865 | H37: 1.723620971 | I37: =I38+I55+I56 -> 557589 | J37: =J38+J55+J56 -> 499123
A38: Безвозмездные поступления от других бюджетов БС РФ | B38: =B39+B40+B41+B48+B53 -> 957475.9614 | C38: =C39+C40+C41+C48+C53 -> 1265129.448 | D38: 1.321317192 | E38: =E39+E40+E41+E48+E53 -> 501616.0928 | F38: =F39+F40+F41+F48+F53 -> 873165.2281 | G38: 0.6901785657 | H38: 1.740704177 | I38: =I39+I40+I41+I48+I53 -> 557589 | J38: =J39+J40+J41+J48+J53 -> 499123
A39: - дотации на выравнивание БО** | B39: 64442 | C39: 0 | D39: - | E39: 48975.92 | F39: 0 | G39: - | H39: - | I39: 53129
A40: - иные межбюджетные трансферты в форме дотаций | B40: 7097.953 | C40: 21129.307 | D40: 2.976816978 | E40: 7097.953 | F40: 21129.307 | G40: 1 | H40: 2.976816978
A41: Субсидии всего, в том числе | B41: 423555.3025 | C41: 655284.4598 | D41: 1.547104843 | E41: 116674.9654 | F41: 416296.8111 | G41: 0.6352917498 | H41: 3.568004582 | I41: 81356 | J41: 53268
A42: - субсидии на текущие расходы, в том числе | B42: 88515 | C42: 94449.42961 | D42: 1.067044338 | E42: 57449 | F42: 69492.09613 | G42: 0.7357598285 | H42: 1.209631084 | I42: 81356 | J42: 53268
A43: за счет средств федерального бюджета | B43: 30512 | C43: 22436.84688 | D43: 0.7353450079 | E43: 20029 | F43: 17224.36673 | G43: 0.7676821446 | H43: 0.859971378
A44: за счет средств областного бюджета | B44: 58003 | C44: 72012.58273 | E44: 37420 | F44: 52267.72943 | I44: 81356 | J44: 53268
A45: - субсидии на капитальные расходы, в том числе | B45: 335040 | C45: 560835.0302 | D45: =IF(C45<>0,IFERROR(C45/B45,"-"),"-") -> 1.673934546 | E45: 59226 | F45: 346804.7149 | G45: =IF(F45<>0,IFERROR(F45/C45,"-"),"-") -> 0.6183720636 | H45: =IF(F45<>0,IFERROR(F45/E45,"-"),"-") -> 5.855616029
A46: за счет средств федерального бюджета | B46: 5918 | C46: 4582.6 | D46: =IF(C46<>0,IFERROR(C46/B46,"-"),"-") -> 0.7743494424 | E46: 5885 | G46: =IF(F46<>0,IFERROR(F46/C46,"-"),"-") -> - | H46: =IF(F46<>0,IFERROR(F46/E46,"-"),"-") -> -
A47: за счет средств областного бюджета | B47: 329122 | C47: 556252.4302 | E47: 53341 | F47: 346804.7149
A48: - субвенции, всего, в т.ч.: | B48: =B49+B50+B51+B52 -> 405134 | C48: =C49+C50+C51+C52 -> 458381.8328 | D48: =IF(C48<>0,IFERROR(C48/B48,"-"),"-") -> 1.131432644 | E48: =E49+E50+E51+E52 -> 281847 | F48: =F49+F50+F51+F52 -> 318084.3458 | G48: =IF(F48<>0,IFERROR(F48/C48,"-"),"-") -> 0.6939287796 | H48: =IF(F48<>0,IFERROR(F48/E48,"-"),"-") -> 1.128570983 | I48: =I49+I50+I51+I52 -> 399216 | J48: =J49+J50+J51+J52 -> 420556
A49: образование, всего | B49: 332138 | C49: 362638.743 | D49: 1.091831537 | E49: 218717 | F49: 230337.9723 | G49: 0.6351719908 | H49: 1.05313246 | I49: 368189 | J49: 379374
A50: сельское хозяйство | B50: 49533 | C50: 68600 | D50: 1.384935296 | E50: 45087 | F50: 67949.994 | G50: 0.9905246939 | H50: 1.507086167 | I50: 3551 | J50: 12800
A51: социальная политика | B51: 21046 | C51: 23650.87979 | D51: 1.123770778 | E51: 16588 | F51: 17812.8613 | G51: 0.7531585065 | H51: 1.073840204 | I51: 24145 | J51: 24972
A52: прочие субвенции | B52: 2417 | C52: 3492.21 | D52: 1.444853124 | E52: 1455 | F52: 1983.51819 | G52: 0.5679836522 | H52: 1.363242742 | I52: 3331 | J52: 3410
A53: - иные межбюджетные трансферты всего, в том числе | B53: 57246.7059 | C53: 130333.8488 | D53: 2.276704777 | E53: 47020.2544 | F53: 117654.7642 | G53: 0.9027184057 | H53: 2.502214539 | I53: 23888 | J53: 25299
A54: за счет средств федерального бюджета | C54: 61583.64 | F54: 58901.48136 | G54: 0.9564468966 | H54: -
A55: Прочие безвозмездные поступления | B55: 21148.9244 | C55: 500 | D55: =IF(C55<>0,IFERROR(C55/B55,"-"),"-") -> 0.02364186426 | E55: 1879.6812 | F55: 613.3832 | G55: 1.2267664 | H55: 0.3263229956
A56: Доходы от возврата и возврат остатков МБТ | B56: -271.8947 | C56: 0 | D56: - | E56: -271.8947 | F56: -6411.3798 | G56: - | H56: 23.58037799
A57: 2. РАСХОДЫ, в том числе: | B57: 1847626.071 | C57: 2576972.141 | D57: 1.394747661 | E57: 1080636.508 | F57: 1706495.886 | G57: 0.6622096758 | H57: 1.579158092 | I57: =SUM(I58:I62)+I67+I68 -> 1447028 | J57: =SUM(J58:J62)+J67+J68 -> 1419308
A58: - ФБ | B58: 93896 | C58: 90989.98662 | D58: 0.9690507223 | E58: 77302 | F58: 77280.30628 | G58: 0.8493275925 | H58: 0.9997193641 | I58: 30909 | J58: 32883
A59: - ОБ Субвенции | B59: 368752 | C59: 455994.9328 | D59: 1.236589721 | E59: 247006 | F59: 315799.0296 | G59: 0.6925494274 | H59: 1.278507525 | I59: 396990 | J59: 418251
A60: - ОБ Субсидии | B60: 387125 | C60: 628265.0131 | D60: 1.622899614 | E60: 90761 | F60: 399072.4447 | G60: 0.6351976257 | H60: 4.396959539 | I60: 64156 | J60: 35585
A61: - ОБ Иные | B61: 29751 | C61: 68750.2088 | D61: 2.310853712 | E61: 8453 | F61: 58753.2828 | G61: 0.8545906089 | H61: 6.950583556 | I61: 12404 | J61: 12404
A62: - МБ, всего, в т.ч.: | B62: 968102 | C62: 1332972 | D62: 1.376892104 | E62: 657115 | F62: 855590.8229 | G62: 0.6418670631 | H62: 1.30204123 | I62: 942569 | J62: 920185
A63: субсидии МУП | B63: 24953 | C63: 5398.567 | D63: 0.2163494169 | E63: 11563 | F63: 4992.52567 | G63: 0.9247872019 | H63: 0.4317673329 | I63: 1560 | J63: 1560
A64: объем необеспеченных гарантий | D64: - | G64: - | H64: -
A65: субсидии на муниципальное задание | B65: 468413 | C65: 596924.5276 | D65: 1.274355169 | E65: 317130 | F65: 428897.8747 | G65: 0.7185127347 | H65: 1.352435514 | I65: 455847 | J65: 543214
A66: субсидии муницпальным учреждениям на иные цели | B66: 3322 | C66: 42781.23465 | D66: 12.87815613 | E66: 2376 | F66: 10412.55048 | G66: 0.2433906026 | H66: 4.382386566 | I66: 178232 | J66: 865
A67: - ИМБ | D67: - | G67: - | H67: -
A68: - ИБП | D68: - | G68: - | H68: -
A69: Расходы на капитальные вложения | B69: 319893.832 | C69: 468517.6122 | D69: 1.464603457 | E69: 49690.5764 | F69: 338835.2953 | G69: 0.7232071676 | H69: 6.818904506 | I69: =SUM(I70:I72,I74:I77) -> 1791 | J69: =SUM(J70:J72,J74:J77) -> 1791
A70: - ФБ | B70: 5918 | D70: - | E70: 5885 | G70: - | H70: -
A71: - ОБ Субвенции | D71: - | G71: - | H71: -
A72: - ОБ Субсидии | B72: 313318 | C72: 468517.6122 | D72: 1.495342151 | E72: 43323 | F72: 338835.2953 | G72: 0.7232071676 | H72: 7.821141087
A73: доля субсидий из ОБ, % | B73: =IF((B71+B72+B75)<>0,IFERROR(B72/(B71+B72+B75),0),0) -> 0.9979042984 | C73: =IF((C71+C72+C75)<>0,IFERROR(C72/(C71+C72+C75),0),0) -> 1 | E73: =IF((E71+E72+E75)<>0,IFERROR(E72/(E71+E72+E75),0),0) -> 0.9889741131 | F73: =IF((F71+F72+F75)<>0,IFERROR(F72/(F71+F72+F75),0),0) -> 1 | I73: =IF((I71+I72+I75)<>0,IFERROR(I72/(I71+I72+I75),0),0) -> 0 | J73: =IF((J71+J72+J75)<>0,IFERROR(J72/(J71+J72+J75),0),0) -> 0
A74: - ОБ Иные | D74: =IF(C74<>0,IFERROR(C74/B74,"-"),"-") -> - | G74: =IF(F74<>0,IFERROR(F74/C74,"-"),"-") -> - | H74: =IF(F74<>0,IFERROR(F74/E74,"-"),"-") -> -
A75: - МБ | B75: 658 | D75: - | E75: 483 | G75: - | H75: - | I75: 1791 | J75: 1791
A76: - ИМБ | D76: - | G76: - | H76: -
A77: - ИБП | D77: - | G77: - | H77: -
A78: Расходы на содержание ОМС, всего, в т.ч.: | B78: 101987 | C78: 130070 | D78: 1.275358624 | E78: 72585 | F78: 90656 | G78: 0.69697855 | H78: 1.248963284 | I78: 127367 | J78: 127367
A79: расходы на содержание ОМС (без учёта 243 и 400 КВР) | B79: 101987 | C79: 130070 | D79: 1.275358624 | E79: 72585 | F79: 90656 | G79: 0.69697855 | H79: 1.248963284 | I79: 127367 | J79: 127367
A80: заработная плата (211 КОСГУ) | B80: 69020 | C80: 88104 | D80: 1.276499565 | E80: 49325 | F80: 62025 | G80: 0.7039975484 | H80: 1.257475925 | I80: 87701 | J80: 87701
A81: Норматив расходов на содержание ОМС | B81: 104511 | C81: 131762 | D81: 1.260747672 | E81: 104511 | F81: 131762 | G81: 1 | H81: 1.260747672
A82: выполнение норматива | B82: =B81-B79 -> 2524 | C82: =C81-C79 -> 1692 | D82: 0.6703645008 | E82: =E81-E79 -> 31926 | F82: =F81-F79 -> 41106 | G82: 24.29432624 | H82: 1.287539936 | I82: =I81-I79 -> -127367 | J82: =J81-J79 -> -127367
A83: Численность работников ОМС, ед.*** | B83: 91 | C83: 45 | D83: 0.4945054945 | E83: 90 | F83: 38 | G83: 0.8444444444 | H83: 0.4222222222
A84: Расходы на содержание казённых учреждений, в т.ч.: | B84: 27486 | C84: 113251.2688 | D84: 4.120325576 | E84: 19515 | F84: 103508.1152 | G84: 0.9139687025 | H84: 5.304028449 | I84: 32235 | J84: 32235
A85: заработная плата (211 КОСГУ) | B85: 17933 | C85: 19387.15 | E85: 12651 | F85: 13606.47986 | G85: 0.701829813 | H85: 1.075526034 | I85: 19532 | J85: 19532
A86: Численность работников казённых учрежд., ед.*** | B86: 40 | E86: 39 | G86: - | H86: -
A87: Расходы на обслуживание муниципального долга | D87: =IF(C87<>0,IFERROR(C87/B87,"-"),"-") -> - | G87: - | H87: -
A88: в процентах к расходам | B88: =IFERROR(B87/B57,0) -> 0 | C88: =IFERROR(C87/C57,0) -> 0 | E88: =IFERROR(E87/E57,0) -> 0 | F88: =IFERROR(F87/F57,0) -> 0 | G88: - | H88: - | I88: =IFERROR(I87/I57,0) -> 0 | J88: =IFERROR(J87/J57,0) -> 0
A89: Расходы, не отнесенные к вопросам местного значения | B89: 3407 | C89: 4340 | D89: =IF(C89<>0,IFERROR(C89/B89,"-"),"-") -> 1.27384796 | E89: 2421 | F89: 2995.65596 | G89: 0.6902433088 | H89: 1.237363057 | I89: 3600 | J89: 3600
A90: ПРОФИЦИТ ( + ) / ДЕФИЦИТ ( - ) | B90: =B5-B57 -> 125563.2554 | C90: =C5-C57 -> -165242.693 | D90: - | E90: =E5-E57 -> 96657.567 | F90: =F5-F57 -> -68231.65438 | G90: 0.412917831 | H90: -0.7059111511 | I90: =I5-I57 -> -73439 | J90: =J5-J57 -> -74685
A91: Сложившийся уровень дефицита | B91: =IFERROR((-(B90/(B7-B14))),"-") -> -0.1281140237 | C91: =IFERROR((-(C90/(C7-C14))),"-") -> 0.1584798551 | D91: - | E91: =IFERROR((-(E90/(E7-E14))),"-") -> -0.1455818693 | F91: =IFERROR((-(F90/(F7-F14))),"-") -> 0.09871095389 | G91: 0.6228612074 | H91: -0.6780442808 | I91: =IFERROR((-(I90/(I7-I14))),"-") -> 0.08999877451 | J91: =IFERROR((-(J90/(J7-J14))),"-") -> 0.09013124151
A92: Предельный размер дефицита | B92: =(B7-B14)*IF(B119="да",0.05,0.1)+IF(B110>0,B110,0) -> 98008.98586 | C92: =(C7-C14)*IF(C119="да",0.05,0.1)+IF(C110>0,C110,0) -> 269510.0101 | D92: - | F92: =(F7-F14)*IF(F119="да",0.05,0.1)+IF(F110>0,F110,0) -> 137351.3943 | G92: 0.5096337395 | H92: - | I92: =(I7-I14)*IF(I119="да",0.05,0.1)+IF(I110>0,I110,0) -> 155039 | J92: =(J7-J14)*IF(J119="да",0.05,0.1)+IF(J110>0,J110,0) -> 157547.5
A93: Уровень дефицита/профицита | B93: =IFERROR(((B90+IF(B110>0,B110,0))/(B7-B14)),"-") -> 0.1281140237 | C93: =IFERROR(((C90+IF(C110>0,C110,0))/(C7-C14)),"-") -> 0 | D93: - | E93: =IFERROR(((E90+IF(E110>0,E110,0))/(E7-E14)),"-") -> 0.1455818693 | F93: =IFERROR(((F90+IF(F110>0,F110,0))/(F7-F14)),"-") -> -4.249951106e-06 | I93: =IFERROR(((I90+IF(I110>0,I110,0))/(I7-I14)),"-") -> 0 | J93: =IFERROR(((J90+IF(J110>0,J110,0))/(J7-J14)),"-") -> 0
A94: Изменение долга | C94: =C113-B113 -> 0 | D94: - | F94: =F113-E113 -> 0 | G94: =IF(F94<>0,IFERROR(F94/C94,"-"),"-") -> - | H94: =IF(F94<>0,IFERROR(F94/E94,"-"),"-") -> -
A95: ИСТОЧНИКИ ФИНАНСИРОВАНИЯ ДЕФИЦИТА БЮДЖЕТА | B95: =B96+B99+B102+B103+B106+B109+B110 -> -125563.2554 | C95: =C96+C99+C102+C103+C106+C109+C110 -> 165242.693 | D95: - | E95: =E96+E99+E102+E103+E106+E109+E110 -> -96657.1975 | F95: =F96+F99+F102+F103+F106+F109+F110 -> 68231.6545 | G95: 0.4129178317 | H95: -0.7059138509 | I95: =I96+I99+I102+I103+I106+I109+I110 -> 73439 | J95: =J96+J99+J102+J103+J106+J109+J110 -> 74685
A96: - бюджетные кредиты полученные | B96: =B98+B97 -> 0 | C96: =C98+C97 -> 0 | D96: - | E96: =E98+E97 -> 0 | F96: =F98+F97 -> 0 | G96: - | H96: - | I96: =I98+I97 -> 0 | J96: =J98+J97 -> 0
A97: получение бюджетных кредитов | D97: - | G97: - | H97: -
A98: погашение бюджетных кредитов | D98: - | G98: - | H98: -
A99: - коммерческие кредиты | B99: =B100+B101 -> 0 | C99: =C100+C101 -> 0 | D99: - | E99: =E100+E101 -> 0 | F99: =F100+F101 -> 0 | G99: - | H99: - | I99: =I100+I101 -> 0 | J99: =J100+J101 -> 0
A100: получение кредитов | D100: - | G100: - | H100: -
A101: погашение кредитов | D101: - | G101: - | H101: -
A102: - исполнение муниципальных гарантий | D102: - | G102: - | H102: -
A103: - бюджетные кредиты бюджетам | B103: =B104+B105 -> 0 | C103: =C104+C105 -> 0 | D103: - | E103: =E104+E105 -> 0 | F103: =F104+F105 -> 0 | G103: - | H103: - | I103: =I104+I105 -> 0 | J103: =J104+J105 -> 0
A104: предоставление бюджетных кредитов | D104: - | G104: - | H104: -
A105: возврат бюджетных кредитов | D105: - | G105: - | H105: -
A106: - бюджетные кредиты юрлицам | B106: =B107+B108 -> 0 | C106: =C107+C108 -> 0 | D106: - | E106: =E107+E108 -> 0 | F106: =F107+F108 -> 0 | G106: - | H106: - | I106: =I107+I108 -> 0 | J106: =J107+J108 -> 0
A107: предоставление бюджетных кредитов юрлицам | D107: - | G107: - | H107: -
A108: возврат бюджетных кредитов | D108: - | G108: - | H108: -
A109: - иные источники финансирования дефицита | B109: -48.2965 | C109: 0 | D109: - | E109: -52.6214 | F109: 2.9378 | G109: - | H109: -0.05582899733
A110: - изменение остатков средств на счетах: | B110: =B111+B112 -> -125514.9589 | C110: =C111+C112 -> 165242.693 | D110: - | E110: =E111+E112 -> -96604.5761 | F110: =F111+F112 -> 68228.7167 | G110: 0.412900053 | H110: -0.706267958 | I110: =I111+I112 -> 73439 | J110: =J111+J112 -> 74685
A111: увеличение остатков бюджетных средств | B111: =-B5-B97-B100-B105-B108-B109 -> -1973141.03 | C111: =-C5-C97-C100-C105-C108-C109 -> -2411729.448 | D111: - | E111: -1235957.08 | F111: -1644923.677 | G111: 0.6820514956 | H111: 1.330890615 | I111: =-I5-I97-I100-I105-I108-I109 -> -1373589 | J111: =-J5-J97-J100-J105-J108-J109 -> -1344623
A112: уменьшение остатков бюджетных средств | B112: =B57-B98-B101-B102-B104-B107 -> 1847626.071 | C112: =C57-C98-C101-C102-C104-C107 -> 2576972.141 | D112: - | E112: 1139352.504 | F112: 1713152.394 | G112: 0.664792749 | H112: 1.503619283 | I112: =I57-I98-I101-I102-I104-I107 -> 1447028 | J112: =J57-J98-J101-J102-J104-J107 -> 1419308
A113: Муниципальный долг**** | B113: =B114+B115+B116 -> 0 | C113: =C114+C115+C116 -> 0 | D113: =IF(C113<>0,IFERROR(C113/B113,"-"),"-") -> - | E113: =E114+E115+E116 -> 0 | F113: =F114+F115+F116 -> 0 | G113: - | H113: - | I113: =I114+I115+I116 -> 0 | J113: =J114+J115+J116 -> 0
A114: - бюджетные кредиты | D114: - | G114: - | H114: -
A115: - коммерческие кредиты | D115: - | G115: - | H115: -
A116: - гарантии | D116: - | G116: - | H116: -
A117: Верхний предел муниципального долга | D117: - | G117: - | H117: -
A118: Предельный уровень муниципального долга | B118: =(B7-B14)*IF(B119="нет",1,0.5) -> 980089.8586 | C118: =(C7-C14)*IF(C119="нет",1,0.5) -> 1042673.171 | D118: 1.063854668 | E118: =(E7-E14)*IF(E119="нет",1,0.5) -> 663939.5925 | F118: =(F7-F14)*IF(F119="нет",1,0.5) -> 691226.7757 | G118: 0.6629371457 | H118: 1.041098894 | I118: =(I7-I14)*IF(I119="нет",1,0.5) -> 816000 | J118: =(J7-J14)*IF(J119="нет",1,0.5) -> 828625
A119: Применение ограничений по п. 4 ст. 136 БК РФ | B119: Нет | C119: Нет | D119: - | E119: Нет | F119: Нет | G119: - | H119: - | I119: Нет | J119: Нет
A120: уровень муниципального долга | B120: =IFERROR(B113/(B7-B14),"-") -> 0 | C120: =IFERROR(C113/(C7-C14),"-") -> 0 | D120: - | E120: =IFERROR(E113/(E7-E14),"-") -> 0 | F120: =IFERROR(F113/(F7-F14),"-") -> 0 | G120: - | H120: - | I120: =IFERROR(I113/(I7-I14),"-") -> 0 | J120: =IFERROR(J113/(J7-J14),"-") -> 0
A121: Остатки**** | B121: =B122+B129 -> 184822 | C121: =C122+C129 -> 0 | D121: =IF(C121<>0,IFERROR(C121/B121,"-"),"-") -> - | E121: =E122+E129 -> 168398 | F121: =F122+F129 -> 116620.5553 | G121: =IF(F121<>0,IFERROR(F121/C121,"-"),"-") -> - | H121: =IF(F121<>0,IFERROR(F121/E121,"-"),"-") -> 0.6925293372 | I121: =I122+I129 -> 0 | J121: =J122+J129 -> 0
A122: муниципального образования всего, в том числе: | B122: =B123+B124+B128 -> 184822 | C122: =C123+C124+C128 -> 0 | D122: - | E122: =E123+E124+E128 -> 168398 | F122: =F123+F124+F128 -> 116620.5553 | G122: - | H122: 0.6925293372 | I122: =I123+I124+I128 -> 0 | J122: =J123+J124+J128 -> 0
A123: - целевых средств | B123: 6411 | D123: - | E123: 146379 | F123: 1130.85801 | G123: - | H123: 0.007725548132
A124: - нецелевых средств в том числе: | B124: 178411 | D124: - | E124: 22019 | F124: 115489.6973 | G124: - | H124: 5.245001922
A125: - средств дорожного фонда | D125: - | E125: 124360 | G125: - | H125: -
A126: - гранты (с расшифовкой) | D126: - | G126: - | H126: -
A127: - спонсорская/благотворительная помощь (с расшифровкой) | D127: - | G127: - | H127: -
A128: - по прочим безвозмездным поступлениям | D128: - | G128: - | H128: -
A129: Автономных и бюджетных учреждений | D129: - | G129: - | H129: -
A130: Просроч. кредиторская задолженность (ПКЗ)**** | B130: =B139+B131+B136 -> 34032 | C130: =C139+C131+C136 -> 0 | D130: - | E130: =E139+E131+E136 -> 35255 | F130: =F139+F131+F136 -> 10348.22 | G130: - | H130: 0.2935248901 | I130: =I139+I131+I136 -> 0 | J130: =J139+J131+J136 -> 0
A131: - ПКЗ по ОМС и казенным учреждениям, всего, в т.ч.: | D131: - | G131: - | H131: -
A132: по з/п | D132: - | G132: - | H132: -
A133: по налогам и сборам | D133: - | G133: - | H133: -
A134: во внебюджетные фонды
A135: доля задолженности в расходах, % | B135: =IFERROR(B131/B57,"-") -> 0 | C135: =IFERROR(C131/C57,"-") -> 0 | D135: =IF(C135<>0,IFERROR(C135/B135,"-"),"-") -> - | G135: =IF(F135<>0,IFERROR(F135/C135,"-"),"-") -> - | H135: =IF(F135<>0,IFERROR(F135/E135,"-"),"-") -> - | I135: =IFERROR(I131/I57,"-") -> 0 | J135: =IFERROR(J131/J57,"-") -> 0
A136: - ПКЗ автономных и бюджетных учреждений, в т.ч.: | D136: =IF(C136<>0,IFERROR(C136/B136,"-"),"-") -> - | G136: =IF(F136<>0,IFERROR(F136/C136,"-"),"-") -> - | H136: =IF(F136<>0,IFERROR(F136/E136,"-"),"-") -> -
A137: отношение к субсидированию муниципальных заданий, % | B137: =IFERROR(B136/B65,"-") -> 0 | C137: =IFERROR(C136/C65,"-") -> 0 | D137: =IF(C137<>0,IFERROR(C137/B137,"-"),"-") -> - | E137: =IFERROR(E136/E65,"-") -> 0 | G137: =IF(F137<>0,IFERROR(F137/C137,"-"),"-") -> - | H137: =IF(F137<>0,IFERROR(F137/E137,"-"),"-") -> - | I137: =IFERROR(I136/I65,"-") -> 0 | J137: =IFERROR(J136/J65,"-") -> 0
A138: оспоренная в судебном порядке
A139: - ПКЗ МУП (МКП), всего, в т.ч.:***** | B139: =B141+B140 -> 34032 | C139: =C141+C140 -> 0 | D139: =IF(C139<>0,IFERROR(C139/B139,"-"),"-") -> - | E139: =E141+E140 -> 35255 | F139: =F141+F140 -> 10348.22 | G139: =IF(F139<>0,IFERROR(F139/C139,"-"),"-") -> - | H139: =IF(F139<>0,IFERROR(F139/E139,"-"),"-") -> 0.2935248901 | I139: =I141+I140 -> 0 | J139: =J141+J140 -> 0
A140: действующие МУП***** | B140: 3841 | D140: =IF(C140<>0,IFERROR(C140/B140,"-"),"-") -> - | E140: 35255 | F140: 5281.22 | G140: =IF(F140<>0,IFERROR(F140/C140,"-"),"-") -> - | H140: =IF(F140<>0,IFERROR(F140/E140,"-"),"-") -> 0.1498005957
A141: МУП, находящиееся на стадии ликвидации***** | B141: 30191 | F141: 5067
A142: оспоренная в судебном порядке
A143: Просроч. дебиторская задолженность всего, в т.ч.:****
A144: по арендной плате за землю и имущество находящееся в муниципальной собственности всего, в т.ч.:
A145: оспоренная в судебном порядке
A146: находится в процедуре взыскания в Управлении Федеральной службы судебных приставов
A147: Просроч. дебиторская задолженность МУП всего, в т.ч.:***** | B147: 13660 | E147: 13371 | F147: 6245.97
A148: оспоренная в судебном порядке | D148: =IF(C148<>0,IFERROR(C148/B148,"-"),"-") -> - | G148: =IF(F148<>0,IFERROR(F148/C148,"-"),"-") -> - | H148: =IF(F148<>0,IFERROR(F148/E148,"-"),"-") -> -
A149: *- В графе динамика указываются итоги замены дотаций на дополнительный норматив по НДФЛ
A150: **- В графе динамика указывается динамика с учетом поступлений дополнительного норматива по НДФЛ
A151: *** - в плановых назначениях указывается штатная численность, в фактических - среднесписочная численность
A152: **** - указываются данные по состоянию на 01 января отчетного/текущего года,на отчетную дату и аналогичн. дату отчетного года | I152: Данные изменены | J152: 2022-10-11T10:50:43
A153: ***** - также указываются хозяйственные общества со 100% муниципальным участием

Sheet Функц. СР.
C1: Зеленоградский
A2: (наименование МО)
A4: Наименование | B4: Вид расхода | C4: Исполнено за год, предшествующий отчетному | D4: Утвержденный план за отчетный год | E4: Исполнено за отч. год | F4: Динамика исполнения к предыдущему году, % | G4: Уточненный бюджет на тек. год | H4: Динамика плана тек. года к исполнению отчетного, % | I4: Исполнено на аналог. дату отч. года | J4: Исполнено на отч. дату | K4: Исполнение плана, % | L4: К соответствующему периоду отчетного года, %
A5: 2. РАСХОДЫ | B5: всего | C5: =SUM(C6:C15) -> 1425422.156 | D5: =SUM(D6:D15) -> 2218210.63 | E5: =SUM(E6:E15) -> 1847626.071 | F5: =IF(C5<>0,IFERROR(E5/C5,"-"),"-") -> 1.296195701 | G5: =SUM(G6:G15) -> 2576972.141 | H5: =IF(E5<>0,IFERROR(G5/E5,"-"),"-") -> 1.394747661 | I5: =SUM(I6:I15) -> 1080636.508 | J5: =SUM(J6:J15) -> 1706495.887 | K5: =IF(G5<>0,IFERROR(J5/G5,"-"),"-") -> 0.662209676 | L5: =IF(I5<>0,IFERROR(J5/I5,"-"),"-") -> 1.579158092
B6: 110 | C6: =C17+C27+C57+C107+C167+C177+C187+C197+C208 -> 45636.3763 | D6: 23985.5674 | E6: 23977.4429 | F6: =IF(C6<>0,IFERROR(E6/C6,"-"),"-") -> 0.5254019895 | G6: =G17+G27+G57+G107+G167+G177+G187+G197+G208 -> 25430.86 | H6: =IF(E6<>0,IFERROR(G6/E6,"-"),"-") -> 1.060616018 | I6: =I17+I27+I57+I107+I167+I177+I187+I197+I208 -> 17100.5937 | J6: 17781.3213 | K6: 0.6992025162 | L6: =IF(I6<>0,IFERROR(J6/I6,"-"),"-") -> 1.039807249
B7: 120 | C7: 96373.0084 | D7: 103566.4816 | E7: 101795.5649 | F7: 1.05626634 | G7: 128775.0431 | H7: 1.265035891 | I7: 71033.3521 | J7: 90588.59 | K7: 0.7034638686 | L7: 1.275296566
B8: 240 | C8: 252193.4228 | D8: 420557.4896 | E8: 283226.3087 | F8: 1.123051924 | G8: 363751.1973 | H8: 1.284312884 | I8: 204584.0623 | J8: 172528.5595 | K8: 0.474303757 | L8: 0.8433137829
B9: 243 | C9: 135180.5587 | D9: 185955.524 | E9: 128508.3484 | F9: 0.9506422346 | G9: 279411.8756 | H9: 2.174270225 | I9: 63908.6624 | J9: 161722.0453 | K9: 0.5787944587 | L9: 2.530518387
B10: 300 | C10: 25080.3879 | D10: 22597.8801 | E10: 21557.3584 | F10: 0.8595305019 | G10: 22844.5338 | H10: 1.059709329 | I10: 16219.4265 | J10: 17281.948 | K10: 0.7565025468 | L10: 1.06550919
B11: 400 | C11: 61997.96 | D11: 472261.7248 | E11: 319893.832 | F11: 5.159747708 | G11: 468517.6122 | H11: 1.464603457 | I11: 49690.5764 | J11: 338835.2953 | K11: 0.7232071676 | L11: 6.818904506
B12: 610 | C12: 24971.673 | D12: 31424.2 | E12: 31424.2 | F12: 1.258393861 | G12: 5146.2481 | H12: 0.1637670362 | I12: 24748.1847 | J12: 3306.604 | K12: 0.6425271257 | L12: 0.1336099613
B13: 620 | C13: 667269.9584 | D13: 850444.3282 | E13: 846605.1719 | F13: 1.26875961 | G13: 1155908.092 | H13: 1.365344946 | I13: 569746.4358 | J13: 804245.3242 | K13: 0.6957692653 | L13: 1.411584652
B14: 700 | C14: =C206 -> 0 | D14: =D206 -> 0 | E14: =E206 -> 0 | F14: - | G14: =G206 -> 0 | H14: - | I14: =I206 -> 0 | J14: =J206 -> 0 | K14: - | L14: -
B15: иные | C15: =C25+C35+C65+C115+C175+C185+C195+C205+C216 -> 116718.8101 | D15: =D25+D35+D65+D115+D175+D185+D195+D205+D216 -> 107417.4343 | E15: =E25+E35+E65+E115+E175+E185+E195+E205+E216 -> 90637.8437 | F15: 0.7765487296 | G15: =G25+G35+G65+G115+G175+G185+G195+G205+G216 -> 127186.6789 | H15: 1.403240343 | I15: =I25+I35+I65+I115+I175+I185+I195+I205+I216 -> 63605.2142 | J15: =J25+J35+J65+J115+J175+J185+J195+J205+J216 -> 100206.1992 | K15: 0.7878670948 | L15: 1.575440009
A16: ОБЩЕГОСУДАРСТВЕННЫЕ ВОПРОСЫ (0100) | B16: всего | C16: =SUM(C17:C25) -> 151536.6299 | D16: =SUM(D17:D25) -> 179015.7021 | E16: =SUM(E17:E25) -> 166765.6498 | F16: 1.100497285 | G16: =SUM(G17:G25) -> 190340.0094 | H16: 1.141362203 | I16: =SUM(I17:I25) -> 106074.6735 | J16: =SUM(J17:J25) -> 129298.2248 | K16: 0.6793013471 | L16: 1.218935874
B17: 110 | C17: 34236.5216 | D17: 23985.5674 | E17: 23977.4429 | F17: 0.700346933 | G17: 25430.86 | H17: 1.060616018 | I17: 17100.5937 | J17: 17781.3213 | K17: 0.6992025162 | L17: 1.039807249
B18: 120 | C18: 76585.9273 | D18: 83070.0573 | E18: 81648.1435 | F18: 1.066098517 | G18: 99766.0203 | H18: 1.221901883 | I18: 57026.3688 | J18: 70646.9994 | K18: 0.7081268671 | L18: 1.238847938
B19: 240 | C19: 28488.501 | D19: 52221.1144 | E19: 46885.1854 | F19: 1.645758245 | G19: 52599.021 | H19: 1.121868679 | I19: 27691.4744 | J19: 32660.5073 | K19: 0.6209337489 | L19: 1.179442699
B20: 243 | F20: - | H20: - | K20: - | L20: -
B21: 300 | C21: 80 | D21: 73.8729 | E21: 53.8729 | F21: 0.67341125 | G21: 549.1 | H21: 10.19250866 | I21: 53.8729 | J21: 519.0759 | K21: 0.945321253 | L21: 9.635195061
B22: 400 | F22: - | H22: - | K22: - | L22: -
B23: 610 | F23: - | H23: - | K23: - | L23: -
B24: 620 | C24: 0 | D24: 0 | E24: 0 | F24: - | G24: 3511.2462 | H24: - | I24: 0 | J24: 2786.4462 | K24: 0.7935775623 | L24: -
B25: иные | C25: 12145.68 | D25: 19665.0901 | E25: 14201.0051 | F25: 1.169222728 | G25: 8483.7619 | H25: 0.5974057357 | I25: 4202.3637 | J25: 4903.8747 | K25: 0.5780306847 | L25: 1.166932481
A26: НАЦИОНАЛЬНАЯ ЭКОНОМИКА (0400) | B26: всего | C26: =SUM(C27:C35) -> 206608.3847 | D26: =SUM(D27:D35) -> 334302.7852 | E26: =SUM(E27:E35) -> 184654.4961 | F26: 0.8937415409 | G26: =SUM(G27:G35) -> 284836.1235 | H26: 1.542535543 | I26: =SUM(I27:I35) -> 129204.5444 | J26: =SUM(J27:J35) -> 220474.5721 | K26: 0.7740400669 | L26: 1.706399517
B27: 110 | F27: - | H27: - | K27: - | L27: -
B28: 120 | C28: 6158.4179 | D28: 7254.9297 | E28: 7182.1783 | F28: 1.166237566 | G28: 8204.3 | H28: 1.142313607 | I28: 4762.4746 | J28: 6111.3901 | K28: 0.7449008569 | L28: 1.283238361
B29: 240 | C29: 37351.5744 | D29: 142254.5699 | E29: 52467.9427 | F29: 1.404704983 | G29: 44889.2311 | H29: 0.8555553885 | I29: 39782.2479 | J29: 24647.7986 | K29: 0.5490804364 | L29: 0.6195677696
B30: 243 | C30: 68836.1001 | D30: 119252.4277 | E30: 64306.5452 | F30: 0.9341979733 | G30: 128651.1544 | H30: 2.000591915 | I30: 29031.1549 | J30: 91432.6731 | K30: 0.7107023138 | L30: 3.149467302
B31: 300 | F31: - | H31: - | K31: - | L31: -
B32: 400 | C32: 0 | D32: 0 | E32: 0 | F32: - | G32: 0 | H32: - | I32: 0 | J32: 0 | K32: - | L32: -
B33: 610 | F33: - | H33: - | K33: - | L33: -
B34: 620 | C34: 4965.8247 | D34: 13391.3192 | E34: 13391.3192 | F34: 2.696695918 | G34: 36283.138 | H34: 2.709452105 | I34: 11967.0233 | J34: 31834.4107 | K34: 0.8773885737 | L34: 2.660177882
B35: иные | C35: 89296.4676 | D35: 52149.5387 | E35: 47306.5107 | F35: 0.529769116 | G35: 66808.3 | H35: 1.412243241 | I35: 43661.6437 | J35: 66448.2996 | K35: 0.994611442 | L35: 1.521891848
A36: ДОРОЖНОЕ ХОЗЯЙСТВО (ДОРОЖНЫЕ ФОНДЫ) (0409) | B36: всего | C36: =SUM(C37:C45) -> 102836.7463 | D36: =SUM(D37:D45) -> 149385.5017 | E36: =SUM(E37:E45) -> 94439.5192 | F36: 0.9183440997 | G36: =SUM(G37:G45) -> 147022.3374 | H36: 1.556788288 | I36: =SUM(I37:I45) -> 58979.0089 | J36: =SUM(J37:J45) -> 109734.4439 | K36: 0.7463793995 | L36: 1.860567784
B37: 110 | F37: - | H37: - | K37: - | L37: -
B38: 120 | F38: - | H38: - | K38: - | L38: -
B39: 240 | C39: 34000.6462 | D39: 30133.074 | E39: 30132.974 | F39: 0.8862470973 | G39: 18371.183 | H39: 0.6096704228 | I39: 29947.854 | J39: 18301.7708 | K39: 0.9962216804 | L39: 0.6111212777
B40: 243 | C40: 68836.1001 | D40: 119252.4277 | E40: 64306.5452 | F40: 0.9341979733 | G40: 128651.1544 | H40: 2.000591915 | I40: 29031.1549 | J40: 91432.6731 | K40: 0.7107023138 | L40: 3.149467302
B41: 300 | F41: - | H41: - | K41: - | L41: -
B42: 400 | C42: 0 | D42: 0 | E42: 0 | F42: - | G42: 0 | H42: - | I42: 0 | J42: 0 | K42: - | L42: -
B43: 610 | F43: - | H43: - | K43: - | L43: -
B44: 620 | F44: - | H44: - | K44: - | L44: -
B45: иные | F45: - | H45: - | K45: - | L45: -
A46: ОСТАЛЬНЫЕ ВОПРОСЫ НАЦИОНАЛЬНОЙ ЭКОНОМИКИ | B46: всего | C46: =C26-C36 -> 103771.6384 | D46: =D26-D36 -> 184917.2835 | E46: 90214.9769 | F46: 0.8693606297 | G46: =G26-G36 -> 137813.7861 | H46: 1.527615379 | I46: =I26-I36 -> 70225.5355 | J46: 110740.1282 | K46: 0.8035489869 | L46: 1.576921093
B47: 110 | C47: =C27-C37 -> 0 | D47: 0 | E47: 0 | F47: - | G47: 0 | H47: - | I47: =I27-I37 -> 0 | J47: 0 | K47: - | L47: -
B48: 120 | C48: 6158.4179 | D48: 7254.9297 | E48: 7182.1783 | F48: 1.166237566 | G48: 8204.3 | H48: 1.142313607 | I48: =I28-I38 -> 4762.4746 | J48: 6111.3901 | K48: 0.7449008569 | L48: 1.283238361
B49: 240 | C49: 3350.9282 | D49: 112121.4959 | E49: 22334.9687 | F49: 6.665308048 | G49: 26518.0481 | H49: 1.187288348 | I49: =I29-I39 -> 9834.3939 | J49: 6346.0278 | K49: 0.2393097628 | L49: 0.6452891622
B50: 243 | C50: 0 | D50: 0 | E50: 0 | F50: - | G50: 0 | H50: - | I50: =I30-I40 -> 0 | J50: 0 | K50: - | L50: -
B51: 300 | C51: 0 | D51: 0 | E51: 0 | F51: - | G51: 0 | H51: - | I51: =I31-I41 -> 0 | J51: 0 | K51: - | L51: -
B52: 400 | C52: 0 | D52: 0 | E52: 0 | F52: - | G52: 0 | H52: - | I52: =I32-I42 -> 0 | J52: 0 | K52: - | L52: -
B53: 610 | C53: 0 | D53: 0 | E53: 0 | F53: - | G53: 0 | H53: - | I53: =I33-I43 -> 0 | J53: 0 | K53: - | L53: -
B54: 620 | C54: 4965.8247 | D54: 13391.3192 | E54: 13391.3192 | F54: 2.696695918 | G54: 36283.138 | H54: 2.709452105 | I54: =I34-I44 -> 11967.0233 | J54: 31834.4107 | K54: 0.8773885737 | L54: 2.660177882
B55: иные | C55: 89296.4676 | D55: 52149.5387 | E55: 47306.5107 | F55: 0.529769116 | G55: 66808.3 | H55: 1.412243241 | I55: =I35-I45 -> 43661.6437 | J55: 66448.2996 | K55: 0.994611442 | L55: 1.521891848
A56: ЖКХ (0500) | B56: всего | C56: =SUM(C57:C65) -> 389051.5262 | D56: =SUM(D57:D65) -> 911251.7611 | E56: =SUM(E57:E65) -> 707406.9007 | F56: 1.81828589 | G56: =SUM(G57:G65) -> 1244356.844 | H56: 1.759039731 | I56: =SUM(I57:I65) -> 322985.4352 | J56: =SUM(J57:J65) -> 776600.6213 | K56: 0.624098003 | L56: 2.404444711
B57: 110 | C57: 11399.8547 | D57: 0 | E57: 0 | F57: 0 | G57: 0 | H57: - | I57: 0 | J57: 0 | K57: - | L57: -
B58: 120 | F58: - | H58: - | K58: - | L58: -
B59: 240 | C59: 161406.0178 | D59: 200589.4833 | E59: 159276.3529 | F59: 0.9868055421 | G59: 256355.8663 | H59: 1.609503618 | I59: 127985.4106 | J59: 107440.7867 | K59: 0.4191079699 | L59: 0.8394768294
B60: 243 | C60: 55493.825 | D60: 42188.0865 | E60: 39743.9886 | F60: 0.7161875866 | G60: 137394.725 | H60: 3.456993871 | I60: 23300.0583 | J60: 61786.8036 | K60: 0.4497028805 | L60: 2.651787511
B61: 300 | F61: - | H61: - | K61: - | L61: -
B62: 400 | C62: 61997.96 | D62: 472261.7248 | E62: 319893.832 | F62: 5.159747708 | G62: 468517.6122 | H62: 1.464603457 | I62: 49690.5764 | J62: 338835.2953 | K62: 0.7232071676 | L62: 6.818904506
B63: 610 | F63: - | H63: - | K63: - | L63: -
B64: 620 | C64: 83488.9237 | D64: 160609.6634 | E64: 159362.4017 | F64: 1.908784958 | G64: 330199.2735 | H64: 2.072002367 | I64: 106268.1855 | J64: 239684.3358 | K64: 0.7258778412 | L64: 2.255466532
B65: иные | C65: 15264.945 | D65: 35602.8031 | E65: 29130.3255 | F65: 1.90831513 | G65: 51889.367 | H65: 1.78128346 | I65: 15741.2044 | J65: 28853.3999 | K65: 0.5560561165 | L65: 1.832985531
A66: Жилищное хозяйство (0501) | B66: всего | C66: =SUM(C67:C75) -> 7290.3207 | D66: =SUM(D67:D75) -> 16311.5483 | E66: =SUM(E67:E75) -> 8403.4694 | F66: 1.152688578 | G66: =SUM(G67:G75) -> 40050.735 | H66: 4.765976181 | I66: =SUM(I67:I75) -> 5832.8904 | J66: =SUM(J67:J75) -> 15691.3407 | K66: 0.3917865852 | L66: 2.690148387
B67: 110 | F67: - | H67: - | K67: - | L67: -
B68: 120 | F68: - | H68: - | K68: - | L68: -
B69: 240 | C69: 4250.3207 | D69: 5814 | E69: 4225.7015 | F69: 0.9942076841 | G69: 10130.337 | H69: 2.39731486 | I69: 1655.1225 | J69: 8400.8685 | K69: =IF(G69<>0,IFERROR(J69/G69,"-"),"-") -> 0.8292782856 | L69: 5.075677782
B70: 243 | F70: =IF(C70<>0,IFERROR(E70/C70,"-"),"-") -> - | H70: =IF(E70<>0,IFERROR(G70/E70,"-"),"-") -> - | K70: - | L70: =IF(I70<>0,IFERROR(J70/I70,"-"),"-") -> -
B71: 300 | F71: - | H71: - | K71: - | L71: -
B72: 400 | C72: 3040 | D72: 0 | E72: 0 | F72: 0 | G72: 0 | H72: - | I72: 0 | J72: 0 | K72: - | L72: -
B73: 610 | F73: - | H73: - | K73: - | L73: -
B74: 620 | F74: - | H74: - | K74: - | L74: -
B75: иные | C75: 0 | D75: 10497.5483 | E75: 4177.7679 | F75: - | G75: 29920.398 | H75: 7.161814327 | I75: 4177.7679 | J75: 7290.4722 | K75: 0.2436622735 | L75: 1.745063961
A76: Коммунальное хозяйство (0502) | B76: всего | C76: =SUM(C77:C85) -> 64233.6656 | D76: =SUM(D77:D85) -> 568995.5402 | E76: =SUM(E77:E85) -> 383818.9343 | F76: 5.975354679 | G76: =SUM(G77:G85) -> 562213.4535 | H76: 1.46478822 | I76: =SUM(I77:I85) -> 87645.8782 | J76: =SUM(J77:J85) -> 383881.3272 | K76: 0.6828035238 | L76: 4.379913067
B77: 110 | F77: - | H77: - | K77: - | L77: -
B78: 120 | F78: - | H78: - | K78: - | L78: -
B79: 240 | C79: 22673.203 | D79: 52429.7271 | E79: 19776.2622 | F79: 0.8722306328 | G79: 21267.3973 | H79: 1.075400249 | I79: 11519.1397 | J79: 10293.9686 | K79: 0.4840257816 | L79: 0.8936403992
B80: 243 | C80: 10678.8826 | D80: 19198.8335 | E80: 19196.2825 | F80: 1.797592802 | G80: 50459.475 | H80: 2.628606607 | I80: 14872.7256 | J80: 13189.1356 | K80: 0.2613807536 | L80: 0.8868001706
B81: 300 | F81: - | H81: - | K81: - | L81: -
B82: 400 | C82: 16234.61 | D82: 472261.7248 | E82: 319893.832 | F82: 19.70443589 | G82: 468517.6122 | H82: 1.464603457 | I82: 49690.5764 | J82: 338835.2953 | K82: 0.7232071676 | L82: 6.818904506
B83: 610 | F83: - | H83: - | K83: - | L83: -
B84: 620 | F84: - | H84: - | K84: - | L84: -
B85: иные | C85: 14646.97 | D85: 25105.2548 | E85: 24952.5576 | F85: 1.703598601 | G85: 21968.969 | H85: 0.8804295476 | I85: 11563.4365 | J85: 21562.9277 | K85: 0.9815175077 | L85: 1.86475082
A86: Благоустройство (0503) | B86: всего | C86: =SUM(C87:C95) -> 302214.5994 | D86: =SUM(D87:D95) -> 325944.6726 | E86: =SUM(E87:E95) -> 315184.497 | F86: 1.042916185 | G86: =SUM(G87:G95) -> 642092.6555 | H86: 2.037196187 | I86: =SUM(I87:I95) -> 229506.6666 | J86: =SUM(J87:J95) -> 377027.9534 | K86: 0.5871862109 | L86: 1.642775606
B87: 110 | F87: - | H87: - | K87: - | L87: -
B88: 120 | F88: - | H88: - | K88: - | L88: -
B89: 240 | C89: 131187.3833 | D89: 142345.7562 | E89: 135274.3892 | F89: 1.031153955 | G89: 224958.132 | H89: 1.662976513 | I89: 114811.1484 | J89: 88745.9496 | K89: 0.3944998512 | L89: 0.7729732769
B90: 243 | C90: 44814.9424 | D90: 22989.253 | E90: 20547.7061 | F90: 0.4585012275 | G90: 86935.25 | H90: 4.230898066 | I90: 8427.3327 | J90: 48597.668 | K90: 0.5590099298 | L90: 5.766672532
B91: 300 | F91: - | H91: - | K91: - | L91: -
B92: 400 | C92: 42723.35 | D92: 0 | E92: 0 | F92: 0 | G92: 0 | H92: - | I92: 0 | J92: 0 | K92: - | L92: -
B93: 610 | F93: - | H93: - | K93: - | L93: -
B94: 620 | C94: 83488.9237 | D94: 160609.6634 | E94: 159362.4017 | F94: 1.908784958 | G94: 330199.2735 | H94: 2.072002367 | I94: 106268.1855 | J94: 239684.3358 | K94: 0.7258778412 | L94: 2.255466532
B95: иные | F95: - | H95: - | K95: - | L95: -
A96: Другие вопросы в области ЖКХ (0505) | B96: всего | C96: =SUM(C97:C105) -> 15312.9405 | D96: =SUM(D97:D105) -> 0 | E96: =SUM(E97:E105) -> 0 | F96: 0 | G96: =SUM(G97:G105) -> 0 | H96: - | I96: =SUM(I97:I105) -> 0 | J96: =SUM(J97:J105) -> 0 | K96: - | L96: -
B97: 110 | C97: 11399.8547 | D97: 0 | E97: 0 | F97: 0 | G97: 0 | H97: - | I97: 0 | J97: 0 | K97: - | L97: -
B98: 120 | F98: - | H98: - | K98: - | L98: -
B99: 240 | C99: 3295.1108 | D99: 0 | E99: 0 | F99: 0 | G99: 0 | H99: - | I99: 0 | J99: 0 | K99: - | L99: -
B100: 243 | C100: 0 | D100: 0 | E100: 0 | F100: - | G100: 0 | H100: - | I100: 0 | J100: 0 | K100: - | L100: -
B101: 300 | F101: - | H101: - | K101: - | L101: -
B102: 400 | F102: - | H102: - | K102: - | L102: -
B103: 610 | F103: - | H103: - | K103: - | L103: -
B104: 620 | F104: - | H104: - | K104: - | L104: -
B105: иные | C105: 617.975 | D105: 0 | E105: 0 | F105: 0 | G105: 0 | H105: - | I105: 0 | J105: 0 | K105: - | L105: -
A106: ОБРАЗОВАНИЕ (0700) | B106: всего | C106: =SUM(C107:C115) -> 552480.1405 | D106: =SUM(D107:D115) -> 664785.3605 | E106: =SUM(E107:E115) -> 661651.7498 | F106: 1.197602776 | G106: =SUM(G107:G115) -> 694604.6153 | H106: 1.049803942 | I106: =SUM(I107:I115) -> 438719.1115 | J106: =SUM(J107:J115) -> 462459.008 | K106: 0.6657874103 | L106: 1.054111836
B107: 110 | F107: - | H107: - | K107: - | L107: -
B108: 120 | C108: 9920.4192 | D108: 9818.826 | E108: 9750.8826 | F108: 0.9829103391 | G108: 13366.3 | H108: 1.370778477 | I108: 6844.2551 | J108: 8902.4701 | K108: 0.6660384774 | L108: 1.30072155
B109: 240 | C109: 14288.2262 | D109: 19062.3565 | E109: 18800.5627 | F109: 1.315808025 | G109: 4023.4094 | H109: 0.214004733 | I109: 6166.1424 | J109: 3202.6743 | K109: 0.7960100456 | L109: 0.5193967463
B110: 243 | C110: 3214.9836 | D110: 23291.7796 | E110: 23234.5844 | F110: 7.22696825 | G110: 0 | H110: 0 | I110: 11577.4492 | J110: 0 | K110: - | L110: 0
B111: 300 | C111: 1951.794 | D111: 3122.3712 | E111: 2963.018 | F111: 1.518099758 | G111: 2116.8578 | H111: 0.714426237 | I111: 2829.07 | J111: 1766.21 | K111: 0.8343545797 | L111: 0.6243076347
B112: 400 | F112: - | H112: - | K112: - | L112: -
B113: 610 | F113: - | H113: - | K113: - | L113: -
B114: 620 | C114: 523093 | D114: 609490.0248 | E114: 606902.6997 | F114: 1.160219502 | G114: 675094.0481 | H114: 1.112359606 | I114: 411302.1924 | J114: 448587.6536 | K114: 0.664481719 | L114: 1.090652231
B115: иные | C115: 11.7175 | D115: 0.0024 | E115: 0.0024 | F115: 0.0002048218477 | G115: 4 | H115: 1666.666667 | I115: 0.0024 | J115: 0 | K115: 0 | L115: 0
A116: Дошкольное образование (0701) | B116: всего | C116: =SUM(C117:C125) -> 193466.4192 | D116: =SUM(D117:D125) -> 232305.5711 | E116: =SUM(E117:E125) -> 232178.068 | F116: 1.200094926 | G116: =SUM(G117:G125) -> 237743.6656 | H116: 1.023971246 | I116: =SUM(I117:I125) -> 144143.389 | J116: =SUM(J117:J125) -> 132908.2828 | K116: 0.5590402691 | L116: 0.9220560424
B117: 110 | F117: - | H117: - | K117: - | L117: -
B118: 120 | F118: - | H118: - | K118: - | L118: -
B119: 240 | C119: 385.963 | D119: 2199.7063 | E119: 2199.7063 | F119: 5.699267287 | G119: 25.0925 | H119: 0.01140720468 | I119: 1335.2656 | J119: 25.0925 | K119: 1 | L119: 0.01879214143
B120: 243 | C120: 831.8086 | D120: 21922.4227 | E120: 21865.2276 | F120: 26.28636876 | G120: 0 | H120: 0 | I120: 10211.8366 | J120: 0 | K120: - | L120: 0
B121: 300 | F121: - | H121: - | K121: - | L121: -
B122: 400 | F122: - | H122: - | K122: - | L122: -
B123: 610 | F123: - | H123: - | K123: - | L123: -
B124: 620 | C124: 192248.6476 | D124: 208183.4421 | E124: 208113.1341 | F124: 1.082520666 | G124: 237718.5731 | H124: 1.142256466 | I124: 132596.2868 | J124: 132883.1903 | K124: 0.5589937234 | L124: 1.002163737
B125: иные | F125: - | H125: - | K125: - | L125: -
A126: Общее образование (0702) | B126: всего | C126: =SUM(C127:C135) -> 299216.1318 | D126: =SUM(D127:D135) -> 365644.4589 | E126: =SUM(E127:E135) -> 363255.4803 | F126: 1.214023716 | G126: =SUM(G127:G135) -> 373801.845 | H126: 1.029032913 | I126: =SUM(I127:I135) -> 246847.346 | J126: =SUM(J127:J135) -> 271498.6689 | K126: 0.7263170916 | L126: 1.099864646
B127: 110 | F127: - | H127: - | K127: - | L127: -
B128: 120 | F128: - | H128: - | K128: - | L128: -
B129: 240 | C129: 11433.2705 | D129: 12362.6356 | E129: 12362.6246 | F129: 1.081285062 | G129: 1529.2808 | H129: 0.1237019524 | I129: 2163.156 | J129: 1526.4554 | K129: 0.9981524649 | L129: 0.7056612653
B130: 243 | C130: 2383.175 | D130: 1369.3568 | E130: 1369.3568 | F130: 0.574593473 | G130: 0 | H130: 0 | I130: 1365.6127 | J130: 0 | K130: - | L130: 0
B131: 300 | F131: - | H131: - | K131: - | L131: -
B132: 400 | F132: - | H132: - | K132: - | L132: -
B133: 610 | F133: - | H133: - | K133: =IF(G133<>0,IFERROR(J133/G133,"-"),"-") -> - | L133: -
B134: 620 | C134: 285399.6863 | D134: 351912.4665 | E134: 349523.4989 | F134: =IF(C134<>0,IFERROR(E134/C134,"-"),"-") -> 1.22468074 | G134: 372272.5642 | H134: =IF(E134<>0,IFERROR(G134/E134,"-"),"-") -> 1.065085939 | I134: 243318.5773 | J134: 269972.2135 | K134: 0.7252004028 | L134: =IF(I134<>0,IFERROR(J134/I134,"-"),"-") -> 1.109542134
B135: иные | F135: - | H135: - | K135: - | L135: -
A136: Дополнительное образование (0703) | B136: всего | C136: =SUM(C137:C145) -> 40930.1285 | D136: =SUM(D137:D145) -> 43484.8007 | E136: =SUM(E137:E145) -> 43476.9887 | F136: 1.062224584 | G136: =SUM(G137:G145) -> 56330.434 | H136: 1.295637892 | I136: =SUM(I137:I145) -> 31498.7669 | J136: =SUM(J137:J145) -> 38636.3566 | K136: 0.6858877849 | L136: 1.22659902
B137: 110 | F137: - | H137: - | K137: - | L137: -
B138: 120 | F138: - | H138: - | K138: - | L138: -
B139: 240 | C139: 306.0525 | D139: 1259.86 | E139: 1259.86 | F139: 4.116483283 | G139: 581.7362 | H139: 0.461746702 | I139: 1259.86 | J139: 581.7362 | K139: 1 | L139: 0.461746702
B140: 243 | F140: - | H140: - | K140: - | L140: -
B141: 300 | F141: - | H141: - | K141: - | L141: -
B142: 400 | F142: - | H142: - | K142: - | L142: -
B143: 610 | F143: - | H143: - | K143: - | L143: -
B144: 620 | C144: 40624.076 | D144: 42224.9407 | E144: 42217.1287 | F144: 1.039214497 | G144: 55748.6978 | H144: 1.320523198 | I144: 30238.9069 | J144: 38054.6204 | K144: 0.6826100322 | L144: 1.258465477
B145: иные | F145: - | H145: - | K145: - | L145: -
A146: Молодежная политика (0707) | B146: всего | C146: =SUM(C147:C155) -> 7096.6842 | D146: =SUM(D147:D155) -> 10594.6468 | E146: =SUM(E147:E155) -> 10146.791 | F146: 1.429793227 | G146: =SUM(G147:G155) -> 11723.0708 | H146: 1.155347617 | I146: =SUM(I147:I155) -> 8167.7264 | J146: =SUM(J147:J155) -> 9777.8394 | K146: 0.834068101 | L146: 1.197131114
B147: 110 | F147: - | H147: - | K147: - | L147: -
B148: 120 | C148: 0 | D148: 0 | E148: 0 | F148: - | G148: 56 | H148: - | I148: 0 | J148: 56 | K148: 1 | L148: -
B149: 240 | C149: 420 | D149: 420 | E149: 251.235 | F149: 0.5981785714 | G149: 364 | H149: 1.448842717 | I149: 251.235 | J149: 364 | K149: 1 | L149: 1.448842717
B150: 243 | F150: - | H150: - | K150: - | L150: -
B151: 300 | C151: 1856.094 | D151: 3005.4712 | E151: 2846.618 | F151: 1.533660472 | G151: 1948.8578 | H151: 0.6846221727 | I151: 2768.07 | J151: 1680.21 | K151: 0.8621511534 | L151: 0.6069969329
B152: 400 | F152: - | H152: - | K152: - | L152: -
B153: 610 | F153: - | H153: - | K153: - | L153: -
B154: 620 | C154: 4820.5902 | D154: 7169.1756 | E154: 7048.938 | F154: 1.462256219 | G154: 9354.213 | H154: 1.327038626 | I154: 5148.4214 | J154: 7677.6294 | K154: 0.8207670063 | L154: 1.491258932
B155: иные | F155: - | H155: - | K155: - | L155: -
A156: Другие вопросы в области образования (0709) | B156: всего | C156: =SUM(C157:C165) -> 11770.777 | D156: =SUM(D157:D165) -> 12755.883 | E156: =SUM(E157:E165) -> 12594.4218 | F156: 1.069973698 | G156: =SUM(G157:G165) -> 15005.6 | H156: 1.191448106 | I156: =SUM(I157:I165) -> 8061.8834 | J156: =SUM(J157:J165) -> 9637.8603 | K156: 0.6422842339 | L156: 1.195484953
B157: 110 | F157: - | H157: - | K157: - | L157: -
B158: 120 | C158: 9920.4192 | D158: 9818.826 | E158: 9750.8826 | F158: 0.9829103391 | G158: 13310.3 | H158: 1.365035407 | I158: 6844.2551 | J158: 8846.4701 | K158: 0.6646334117 | L158: 1.292539505
B159: 240 | C159: 1742.9403 | D159: 2820.1546 | E159: 2727.1368 | F159: 1.564675967 | G159: 1523.3 | H159: 0.5585711725 | I159: 1156.6259 | J159: 705.3902 | K159: 0.4630671568 | L159: 0.60986893
B160: 243 | F160: - | H160: - | K160: - | L160: -
B161: 300 | C161: 95.7 | D161: 116.9 | E161: 116.4 | F161: 1.21630094 | G161: 168 | H161: 1.443298969 | I161: 61 | J161: 86 | K161: 0.5119047619 | L161: 1.409836066
B162: 400 | F162: - | H162: - | K162: - | L162: -
B163: 610 | F163: - | H163: - | K163: - | L163: -
B164: 620 | F164: - | H164: - | K164: - | L164: -
B165: иные | C165: 11.7175 | D165: 0.0024 | E165: 0.0024 | F165: 0.0002048218477 | G165: 4 | H165: 1666.666667 | I165: 0.0024 | J165: 0 | K165: 0 | L165: 0
A166: КУЛЬТУРА (0800) | B166: всего | C166: =SUM(C167:C175) -> 87774.4834 | D166: =SUM(D167:D175) -> 92132.3448 | E166: =SUM(E167:E175) -> 92042.7233 | F166: 1.048627343 | G166: =SUM(G167:G175) -> 116082.1473 | H166: 1.261176801 | I166: =SUM(I167:I175) -> 59484.0838 | J166: =SUM(J167:J175) -> 86463.2181 | K166: 0.7448450956 | L166: 1.453552153
B167: 110 | F167: - | H167: - | K167: - | L167: -
B168: 120 | F168: - | H168: - | K168: - | L168: -
B169: 240 | C169: 9117.0664 | D169: 3742.3548 | E169: 3657.3028 | F169: 0.4011490801 | G169: 3899.1645 | H169: 1.066131166 | I169: 2410.902 | J169: 3348.7236 | K169: 0.858831065 | L169: 1.388992004
B170: 243 | C170: 7635.65 | D170: 1223.2302 | E170: 1223.2302 | F170: 0.1601998782 | G170: 10131.9962 | H170: 8.282984021 | I170: 0 | J170: 8502.5686 | K170: 0.8391800029 | L170: -
B171: 300 | F171: - | H171: - | K171: - | L171: -
B172: 400 | F172: - | H172: - | K172: - | L172: -
B173: 610 | C173: 20424.657 | D173: 26493.234 | E173: 26493.234 | F173: 1.297120143 | G173: 0 | H173: 0 | I173: 21395.9602 | J173: 0 | K173: - | L173: 0
B174: 620 | C174: 50597.11 | D174: 60673.5258 | E174: 60668.9563 | F174: 1.199059715 | G174: 102050.9866 | H174: 1.682095635 | I174: 35677.2216 | J174: 74611.9259 | K174: 0.7311240037 | L174: 2.091304271
B175: иные | F175: - | H175: - | K175: - | L175: -
A176: ЗДРАВООХРАНЕНИЕ (0900) | B176: всего | C176: =SUM(C177:C185) -> 0 | D176: =SUM(D177:D185) -> 0 | E176: =SUM(E177:E185) -> 0 | F176: - | G176: =SUM(G177:G185) -> 0 | H176: - | I176: =SUM(I177:I185) -> 0 | J176: =SUM(J177:J185) -> 0 | K176: - | L176: -
B177: 110 | F177: - | H177: - | K177: - | L177: -
B178: 120 | F178: - | H178: - | K178: - | L178: -
B179: 240 | F179: - | H179: - | K179: - | L179: -
B180: 243 | F180: - | H180: - | K180: - | L180: -
B181: 300 | F181: - | H181: - | K181: - | L181: -
B182: 400 | F182: - | H182: - | K182: - | L182: -
B183: 610 | F183: - | H183: - | K183: - | L183: -
B184: 620 | F184: - | H184: - | K184: - | L184: -
B185: иные | F185: - | H185: - | K185: - | L185: -
A186: ФИЗКУЛЬТУРА И СПОРТ (1100) | B186: всего | C186: =SUM(C187:C195) -> 400.191 | D186: =SUM(D187:D195) -> 1000 | E186: =SUM(E187:E195) -> 532.205 | F186: 1.329877484 | G186: =SUM(G187:G195) -> 4234 | H186: 7.955581026 | I186: =SUM(I187:I195) -> 205.21 | J186: =SUM(J187:J195) -> 784.68 | K186: 0.1853282948 | L186: 3.823790264
B187: 110 | F187: - | H187: - | K187: - | L187: -
B188: 120 | C188: 65.191 | D188: 250 | E188: 151.235 | F188: 2.319875443 | G188: 408 | H188: 2.69778821 | I188: 128.71 | J188: 305.85 | K188: 0.7496323529 | L188: 2.37627224
B189: 240 | C189: 335 | D189: 567.53 | E189: 198.5 | F189: 0.5925373134 | G189: 280 | H189: 1.410579345 | I189: 76.5 | J189: 166.83 | K189: 0.5958214286 | L189: 2.180784314
B190: 243 | C190: 0 | D190: 0 | E190: 0 | F190: - | G190: 3234 | H190: - | I190: 0 | J190: 0 | K190: 0 | L190: -
B191: 300 | F191: - | H191: - | K191: - | L191: -
B192: 400 | F192: - | H192: - | K192: - | L192: -
B193: 610 | F193: - | H193: - | K193: - | L193: -
B194: 620 | C194: 0 | D194: 182.47 | E194: 182.47 | F194: - | G194: 312 | H194: 1.709870116 | I194: 0 | J194: 312 | K194: 1 | L194: -
B195: иные | F195: - | H195: - | K195: - | L195: -
A196: СОЦИАЛЬНАЯ ПОЛИТИКА (1000) | B196: всего | C196: =SUM(C197:C205) -> 32445.6999 | D196: =SUM(D197:D205) -> 29625.3513 | E196: =SUM(E197:E205) -> 28475.0212 | F196: 0.877620803 | G196: =SUM(G197:G205) -> 33028.1019 | H196: 1.159897359 | I196: =SUM(I197:I205) -> 19431.6367 | J196: =SUM(J197:J205) -> 23509.2787 | K196: 0.7117962386 | L196: 1.209845525
B197: 110 | F197: - | H197: - | K197: =IF(G197<>0,IFERROR(J197/G197,"-"),"-") -> - | L197: -
B198: 120 | C198: 3643.053 | D198: 3172.6686 | E198: 3063.1255 | F198: =IF(C198<>0,IFERROR(E198/C198,"-"),"-") -> 0.8408127743 | G198: 6016.7228 | H198: =IF(E198<>0,IFERROR(G198/E198,"-"),"-") -> 1.964242993 | I198: 2271.5436 | J198: 4163.3486 | K198: 0.6919628406 | L198: =IF(I198<>0,IFERROR(J198/I198,"-"),"-") -> 1.83282795
B199: 240 | C199: 1207.037 | D199: 2120.0807 | E199: 1940.4622 | F199: 1.607624456 | G199: 1685.305 | H199: 0.868506998 | I199: 471.385 | J199: 1042.039 | K199: 0.6183088521 | L199: 2.21059007
B200: 243 | F200: - | H200: - | K200: - | L200: -
B201: 300 | C201: 23048.5939 | D201: 19401.636 | E201: 18540.4675 | F201: 0.8044077474 | G201: 20178.576 | H201: 1.088353139 | I201: 13336.4836 | J201: 14996.6621 | K201: 0.7431972454 | L201: 1.124483976
... 15 more rows

Sheet МБТ
A2: Сведения о софинансировании (финансировании) расходного обязательства | J2: Зеленоградский
H3: наименование муниципального образования
M4: тыс. руб.
A5: Наименование / Наименование направления расходов областного бюджета | C5: ВР | D5: Исполнено за год, предшествующий отчетному | E5: Утвержденный план за отчетный год | F5: Исполнено за отч. год | G5: Динамика исполнения к предыдущему году, % | H5: Уточненный бюджет на тек. год | I5: Динамика плана тек. года к исполнению отчетного, % | J5: Исполнено на аналог. дату отч. года | K5: Исполнено на отч. дату | L5: Исполнение плана, % | M5: К соответствующему периоду отчетного года, %
A6: код направления* | B6: Р.Пр.*
A7: Расходы местного бюджета | C7: Всего** | D7: =D10+D13+D16+D19+D22 -> 639676.6 | E7: 1174757.1 | F7: 924078.4 | G7: =IF(D7<>0,IFERROR(F7/D7,"-"),"-") -> 1.444602476 | H7: =H10+H13+H16+H19+H22 -> 1348507.6 | I7: 1.45929999 | J7: =J10+J13+J16+J19+J22 -> 455533.7 | K7: 893635.9 | L7: =IF(H7<>0,IFERROR(K7/H7,"-"),"-") -> 0.6626851046 | M7: =IF(J7<>0,IFERROR(K7/J7,"-"),"-") -> 1.961733896
C8: ОБ(500) | D8: 609204.2 | E8: 1127419.6 | F8: 885935.6 | G8: 1.454250644 | H8: 1244000 | I8: 1.404165269 | J8: 445541.8 | K8: 852035.9 | L8: 0.6849163183 | M8: 1.912359065
C9: УС*** | D9: =IF(D7<>0,IFERROR(D8/D7,"-"),"-") -> 0.9523628033 | E9: =IF(E7<>0,IFERROR(E8/E7,"-"),"-") -> 0.9597044359 | F9: =IF(F7<>0,IFERROR(F8/F7,"-"),"-") -> 0.9587234157 | G9: 1.00667877 | H9: =IF(H7<>0,IFERROR(H8/H7,"-"),"-") -> 0.9225012896 | I9: 0.9622183776 | J9: =IF(J7<>0,IFERROR(J8/J7,"-"),"-") -> 0.9780655087 | K9: =IF(K7<>0,IFERROR(K8/K7,"-"),"-") -> 0.9534486025 | L9: 1.033547176 | M9: 0.9748310252
A10: Субсидии на текущие расходы | C10: Всего** | D10: =SUMIF(typeOwn:$C1955,"521ОБ",D25:$D2562) -> 154161 | E10: =SUMIF(typeOwn:$C1955,"521ОБ",$E25:E2562) -> 171663.6 | F10: =SUMIF(typeOwn:$C1955,"521ОБ",$F25:F2562) -> 120485.6 | G10: 0.7815569437 | H10: =SUMIF(typeOwn:$C1955,"521ОБ",H25:HF1825) -> 144454.9 | I10: 1.198939126 | J10: =SUMIF(typeOwn:$C1955,"521ОБ",$J25:J2562) -> 84122.5 | K10: =SUMIF(typeOwn:$C1955,"521ОБ",$K25:K2562) -> 108642.5 | L10: 0.7520859452 | M10: 1.291479687
C11: ОБ(521) | D11: =SUMIF(typeOwn:$C1955,"521ОБ",D26:$D2557) -> 128467.4 | E11: =SUMIF(typeOwn:$C1955,"521ОБ",$E26:E2557) -> 139569.4 | F11: =SUMIF(typeOwn:$C1955,"521ОБ",$F26:F2557) -> 88514.9 | G11: 0.6890067052 | H11: =SUMIF(typeOwn:$C1955,"521ОБ",$H26:H2557) -> 94449.4 | I11: 1.067045209 | J11: =SUMIF(typeOwn:$C1955,"521ОБ",$J26:J2557) -> 57448.7 | K11: =SUMIF(typeOwn:$C1955,"521ОБ",$K26:K2557) -> 69492.1 | L11: 0.7357601001 | M11: 1.209637468
C12: УС*** | D12: =IF(D10<>0,IFERROR(D11/D10,"-"),"-") -> 0.8333326847 | E12: =IF(E10<>0,IFERROR(E11/E10,"-"),"-") -> 0.8130401553 | F12: =IF(F10<>0,IFERROR(F11/F10,"-"),"-") -> 0.7346512778 | G12: 0.8815822196 | H12: =IF(H10<>0,IFERROR(H11/H10,"-"),"-") -> 0.6538331341 | I12: 0.8899911479 | J12: =IF(J10<>0,IFERROR(J11/J10,"-"),"-") -> 0.6829171744 | K12: =IF(K10<>0,IFERROR(K11/K10,"-"),"-") -> 0.639640104 | L12: 0.9782925806 | M12: 0.9366291082
A13: Субсидии на капитальные расходы | C13: Всего** | D13: =SUMIF(typeOwn:$C1958,"522ОБ",D25:$D2565) -> 16281.6 | E13: =SUMIF(typeOwn:$C1958,"522ОБ",$E25:E2565) -> 472261.7 | F13: =SUMIF(typeOwn:$C1958,"522ОБ",$F25:F2565) -> 319893.9 | G13: 19.64757149 | H13: =SUMIF(typeOwn:$C1958,"522ОБ",$H25:H2565) -> 468517.6 | I13: 1.464603107 | J13: =SUMIF(typeOwn:$C1958,"522ОБ",$J25:J2565) -> 49690.6 | K13: =SUMIF(typeOwn:$C1958,"522ОБ",$K25:K2565) -> 338835.3 | L13: 0.7232071965 | M13: 6.818901362
C14: ОБ(522) | D14: =SUMIF(typeOwn:$C1958,"522ОБ",D26:$D2560) -> 16057.8 | E14: =SUMIF(typeOwn:$C1958,"522ОБ",$E26:E2560) -> 471593.9 | F14: =SUMIF(typeOwn:$C1958,"522ОБ",$F26:F2560) -> 319235.8 | G14: 19.88041948 | H14: =SUMIF(typeOwn:$C1958,"522ОБ",$H26:H2560) -> 468517.6 | I14: 1.467622366 | J14: =SUMIF(typeOwn:$C1958,"522ОБ",$J26:J2560) -> 49208.3 | K14: =SUMIF(typeOwn:$C1958,"522ОБ",$K26:K2560) -> 338835.3 | L14: 0.7232071965 | M14: 6.885734724
C15: УС*** | D15: =IF(D13<>0,IFERROR(D14/D13,"-"),"-") -> 0.9862544222 | E15: =IF(E13<>0,IFERROR(E14/E13,"-"),"-") -> 0.9985859535 | F15: =IF(F13<>0,IFERROR(F14/F13,"-"),"-") -> 0.9979427554 | G15: 1.011851235 | H15: =IF(H13<>0,IFERROR(H14/H13,"-"),"-") -> 1 | I15: 1.002061486 | J15: =IF(J13<>0,IFERROR(J14/J13,"-"),"-") -> 0.9902939389 | K15: =IF(K13<>0,IFERROR(K14/K13,"-"),"-") -> 1 | L15: 1 | M15: 1.009801192
A16: Субсидии на консолидированные расходы | C16: Всего** | D16: =SUMIF(typeOwn:$C1961,"523ОБ",D25:$D2568) -> 28968.3 | E16: =SUMIF(typeOwn:$C1961,"523ОБ",$E25:E2568) -> 57722 | F16: =SUMIF(typeOwn:$C1961,"523ОБ",$F25:F2568) -> 24665.4 | G16: 0.8514617703 | H16: =SUMIF(typeOwn:$C1961,"523ОБ",$H25:H2568) -> 112130.8 | I16: 4.54607669 | J16: =SUMIF(typeOwn:$C1961,"523ОБ",$J25:J2568) -> 14872.7 | K16: =SUMIF(typeOwn:$C1961,"523ОБ",$K25:K2568) -> 11549.9 | L16: 0.1030038134 | M16: 0.7765839424
C17: ОБ(523) | D17: =SUMIF(typeOwn:$C1961,"523ОБ",D26:$D2563) -> 24168.1 | E17: =SUMIF(typeOwn:$C1961,"523ОБ",$E26:E2563) -> 46215.5 | F17: =SUMIF(typeOwn:$C1961,"523ОБ",$F26:F2563) -> 15804.6 | G17: 0.6539446626 | H17: =SUMIF(typeOwn:$C1961,"523ОБ",$H26:H2563) -> 92317.4 | I17: 5.841172823 | J17: =SUMIF(typeOwn:$C1961,"523ОБ",$J26:J2563) -> 10017.9 | K17: =SUMIF(typeOwn:$C1961,"523ОБ",$K26:K2563) -> 7969.4 | L17: 0.08632608804 | M17: 0.7955160263
C18: УС*** | D18: =IF(D16<>0,IFERROR(D17/D16,"-"),"-") -> 0.8342947291 | E18: =IF(E16<>0,IFERROR(E17/E16,"-"),"-") -> 0.8006565954 | F18: =IF(F16<>0,IFERROR(F17/F16,"-"),"-") -> 0.6407599309 | G18: 0.768025865 | H18: =IF(H16<>0,IFERROR(H17/H16,"-"),"-") -> 0.823301002 | I18: 1.284882157 | J18: =IF(J16<>0,IFERROR(J17/J16,"-"),"-") -> 0.6735764185 | K18: =IF(K16<>0,IFERROR(K17/K16,"-"),"-") -> 0.689997316 | L18: 0.8380863309 | M18: 1.02437867
A19: Субвенции | C19: Всего** | D19: =SUMIF(typeOwn:$C1964,"530ОБ",D25:$D2571) -> 419656.7 | E19: =SUMIF(typeOwn:$C1964,"530ОБ",$E25:E2571) -> 411519.6 | F19: =SUMIF(typeOwn:$C1964,"530ОБ",$F25:F2571) -> 404794.1 | G19: 0.9645839087 | H19: =SUMIF(typeOwn:$C1964,"530ОБ",$H25:H2571) -> 458381.8 | I19: 1.132382611 | J19: =SUMIF(typeOwn:$C1964,"530ОБ",$J25:J2571) -> 279900.4 | K19: =SUMIF(typeOwn:$C1964,"530ОБ",$K25:K2571) -> 316953.4 | L19: 0.691461572 | M19: 1.132379232
C20: ОБ(530) | D20: =SUMIF(typeOwn:$C1964,"530ОБ",D26:$D2566) -> 419901.9 | E20: =SUMIF(typeOwn:$C1964,"530ОБ",$E26:E2566) -> 411519.6 | F20: =SUMIF(typeOwn:$C1964,"530ОБ",$F26:F2566) -> 405133.6 | G20: 0.9648291661 | H20: =SUMIF(typeOwn:$C1964,"530ОБ",$H26:H2566) -> 458381.8 | I20: 1.13143368 | J20: =SUMIF(typeOwn:$C1964,"530ОБ",$J26:J2566) -> 281846.7 | K20: =SUMIF(typeOwn:$C1964,"530ОБ",$K26:K2566) -> 318084.3 | L20: 0.6939287293 | M20: 1.128572022
C21: УС | D21: =IF(D19<>0,IFERROR(D20/D19,"-"),"-") -> 1.000584287 | E21: =IF(E19<>0,IFERROR(E20/E19,"-"),"-") -> 1 | F21: =IF(F19<>0,IFERROR(F20/F19,"-"),"-") -> 1.000838698 | G21: 1.000254262 | H21: =IF(H19<>0,IFERROR(H20/H19,"-"),"-") -> 1 | I21: 0.9991620048 | J21: =IF(J19<>0,IFERROR(J20/J19,"-"),"-") -> 1.006953545 | K21: =IF(K19<>0,IFERROR(K20/K19,"-"),"-") -> 1.003568032 | L21: 1.003568032 | M21: 0.9966378662
A22: Иные межбюджетные трансферты | C22: Всего** | D22: =SUMIF(typeOwn:$C1967,"540ОБ",D25:$D2574) -> 20609 | E22: =SUMIF(typeOwn:$C1967,"540ОБ",$E25:E2574) -> 61590.2 | F22: =SUMIF(typeOwn:$C1967,"540ОБ",$F25:F2574) -> 54239.4 | G22: 2.631830754 | H22: =SUMIF(typeOwn:$C1967,"540ОБ",$H25:H2574) -> 165022.5 | I22: 3.042483877 | J22: =SUMIF(typeOwn:$C1967,"540ОБ",$J25:J2574) -> 26947.5 | K22: =SUMIF(typeOwn:$C1967,"540ОБ",$K25:K2574) -> 117654.8 | L22: 0.7129621718 | M22: 4.366074775
C23: ОБ(540) | D23: =SUMIF(typeOwn:$C1967,"540ОБ",D26:$D2569) -> 20609 | E23: =SUMIF(typeOwn:$C1967,"540ОБ",$E26:E2569) -> 58521.2 | F23: =SUMIF(typeOwn:$C1967,"540ОБ",$F26:F2569) -> 57246.7 | G23: =IF(D23<>0,IFERROR(F23/D23,"-"),"-") -> 2.777752438 | H23: =SUMIF(typeOwn:$C1967,"540ОБ",$H26:H2569) -> 130333.8 | I23: =IF(F23<>0,IFERROR(H23/F23,"-"),"-") -> 2.276704159 | J23: =SUMIF(typeOwn:$C1967,"540ОБ",$J26:J2569) -> 47020.2 | K23: =SUMIF(typeOwn:$C1967,"540ОБ",$K26:K2569) -> 117654.8 | L23: 0.9027190184 | M23: 2.502218196
C24: УС*** | D24: =IF(D22<>0,IFERROR(D23/D22,"-"),"-") -> 1 | E24: =IF(E22<>0,IFERROR(E23/E22,"-"),"-") -> 0.950170644 | F24: =IF(F22<>0,IFERROR(F23/F22,"-"),"-") -> 1.055444935 | G24: 1.055444935 | H24: =IF(H22<>0,IFERROR(H23/H22,"-"),"-") -> 0.789794119 | I24: 0.7483044287 | J24: =IF(J22<>0,IFERROR(J23/J22,"-"),"-") -> 1.744881714 | K24: =IF(K22<>0,IFERROR(K23/K22,"-"),"-") -> 1 | L24: 1.266152755 | M24: 0.5731047507
A27: Субсидии на обеспечение бесплатной перевозки обучающихся к муниципальным общеобразовательным учреждениям | C27: Всего** | D27: =SUM(D30:D33)-D28 -> 2919 | E27: =SUM(E30:E33)-E28 -> 9003 | F27: =SUM(F30:F33)-F28 -> 9003 | G27: =IF(D27<>0,IFERROR(F27/D27,"-"),"-") -> 3.084275437 | H27: =SUM(H30:H33)-H28 -> 11560.3 | I27: =IF(F27<>0,IFERROR(H27/F27,"-"),"-") -> 1.284049761 | J27: =SUM(J30:J33)-J28 -> 5827.8 | K27: =SUM(K30:K33)-K28 -> 8171.9 | L27: =IF(H27<>0,IFERROR(K27/H27,"-"),"-") -> 0.7068934197 | M27: =IF(J27<>0,IFERROR(K27/J27,"-"),"-") -> 1.402227256
C28: =IF(VALUE(C30)=0,"ВР(ОБ)",IF(VALUE(C30)>540,"ошибка",IF(VALUE(C30)<521,"ошибка",C30&"ОБ"))) -> 521ОБ | D28: =SUMIF($C30:$C33,$C30,D30:D33) -> 2919 | E28: =SUMIF($C30:$C33,$C30,E30:E33) -> 2731 | F28: =SUMIF($C30:$C33,$C30,F30:F33) -> 2731 | G28: 0.9355943816 | H28: =SUMIF($C30:$C33,$C30,H30:H33) -> 4651 | I28: 1.70303918 | J28: =SUMIF($C30:$C33,$C30,J30:J33) -> 1829.8 | K28: =SUMIF($C30:$C33,$C30,K30:K33) -> 4372.6 | L28: 0.940141905 | M28: 2.389660072
C29: УС*** | D29: =IF(D27<>0,IFERROR(D28/D27,"-"),"-") -> 1 | E29: =IF(E27<>0,IFERROR(E28/E27,"-"),"-") -> 0.30334333 | F29: =IF(F27<>0,IFERROR(F28/F27,"-"),"-") -> 0.30334333 | G29: 0.30334333 | H29: =IF(H27<>0,IFERROR(H28/H27,"-"),"-") -> 0.4023251992 | I29: 1.326303101 | J29: =IF(J27<>0,IFERROR(J28/J27,"-"),"-") -> 0.3139778304 | K29: =IF(K27<>0,IFERROR(K28/K27,"-"),"-") -> 0.5350775218 | L29: 1.329962734 | M29: 1.704188863
A30: 71010 | B30: 0702 | C30: 521 | D30: 2919 | E30: 2731 | F30: 2731 | G30: 0.9355943816 | H30: 4651 | I30: 1.70303918 | J30: 1829.8 | K30: 4372.6 | L30: 0.940141905 | M30: 2.389660072
A31: S1010 | B31: 0702 | C31: 622 | D31: 2919 | E31: 2731 | F31: 2731 | G31: 0.9355943816 | I31: 0 | J31: 1829.8 | L31: - | M31: 0
A32: 71010 | B32: 0702 | C32: 622 | G32: - | I32: - | L32: - | M32: -
A33: S1010 | B33: 0702 | C33: 621 | E33: 6272 | F33: 6272 | G33: - | H33: 11560.3 | I33: 1.843160077 | J33: 3998 | K33: 8171.9 | L33: 0.7068934197 | M33: 2.043996998
A34: Субсидии на осуществление благоустройства территорий | C34: Всего** | D34: =SUM(D37:D38)-D35 -> 2450.4 | E34: =SUM(E37:E38)-E35 -> 2105 | F34: =SUM(F37:F38)-F35 -> 2105 | G34: 0.8590434215 | H34: =SUM(H37:H38)-H35 -> 0 | I34: 0 | J34: =SUM(J37:J38)-J35 -> 0 | K34: =SUM(K37:K38)-K35 -> 0 | L34: - | M34: -
C35: =IF(VALUE(C37)=0,"ВР(ОБ)",IF(VALUE(C37)>540,"ошибка",IF(VALUE(C37)<521,"ошибка",C37&"ОБ"))) -> 521ОБ | D35: =SUMIF($C37:$C38,$C37,D37:D38) -> 1225.2 | E35: =SUMIF($C37:$C38,$C37,E37:E38) -> 2105 | F35: =SUMIF($C37:$C38,$C37,F37:F38) -> 2105 | G35: 1.718086843 | H35: =SUMIF($C37:$C38,$C37,H37:H38) -> 0 | I35: 0 | J35: =SUMIF($C37:$C38,$C37,J37:J38) -> 0 | K35: =SUMIF($C37:$C38,$C37,K37:K38) -> 0 | L35: - | M35: -
C36: УС*** | D36: =IF(D34<>0,IFERROR(D35/D34,"-"),"-") -> 0.5 | E36: =IF(E34<>0,IFERROR(E35/E34,"-"),"-") -> 1 | F36: =IF(F34<>0,IFERROR(F35/F34,"-"),"-") -> 1 | G36: 2 | H36: =IF(H34<>0,IFERROR(H35/H34,"-"),"-") -> - | I36: - | J36: =IF(J34<>0,IFERROR(J35/J34,"-"),"-") -> - | K36: =IF(K34<>0,IFERROR(K35/K34,"-"),"-") -> - | L36: - | M36: -
A37: 71170 | B37: 0503 | C37: 521 | D37: 1225.2 | E37: 2105 | F37: 2105 | G37: 1.718086843 | I37: 0 | L37: - | M37: -
A38: S1170 | B38: 0503 | C38: 244 | D38: 2450.4 | E38: 2105 | F38: 2105 | G38: 0.8590434215 | I38: 0 | L38: - | M38: -
A39: Резервный фонд Правительства Калининградской области | C39: Всего** | D39: =SUM(D42:D43)-D40 -> 0 | E39: =SUM(E42:E43)-E40 -> 0 | F39: =SUM(F42:F43)-F40 -> 0 | G39: - | H39: =SUM(H42:H43)-H40 -> 106.8 | I39: - | J39: =SUM(J42:J43)-J40 -> 0 | K39: =SUM(K42:K43)-K40 -> 106.8 | L39: 1 | M39: -
C40: =IF(VALUE(C42)=0,"ВР(ОБ)",IF(VALUE(C42)>540,"ошибка",IF(VALUE(C42)<521,"ошибка",C42&"ОБ"))) -> 521ОБ | D40: =SUMIF($C42:$C43,$C42,D42:D43) -> 0 | E40: =SUMIF($C42:$C43,$C42,E42:E43) -> 0 | F40: =SUMIF($C42:$C43,$C42,F42:F43) -> 0 | G40: - | H40: =SUMIF($C42:$C43,$C42,H42:H43) -> 106.7 | I40: - | J40: =SUMIF($C42:$C43,$C42,J42:J43) -> 0 | K40: =SUMIF($C42:$C43,$C42,K42:K43) -> 106.7 | L40: 1 | M40: -
C41: УС*** | D41: =IF(D39<>0,IFERROR(D40/D39,"-"),"-") -> - | E41: =IF(E39<>0,IFERROR(E40/E39,"-"),"-") -> - | F41: =IF(F39<>0,IFERROR(F40/F39,"-"),"-") -> - | G41: - | H41: =IF(H39<>0,IFERROR(H40/H39,"-"),"-") -> 0.9990636704 | I41: - | J41: =IF(J39<>0,IFERROR(J40/J39,"-"),"-") -> - | K41: =IF(K39<>0,IFERROR(K40/K39,"-"),"-") -> 0.9990636704 | L41: 1 | M41: -
A42: 21910 | B42: 0702 | C42: 521 | G42: - | H42: 106.7 | I42: - | K42: 106.7 | L42: 1 | M42: -
A43: S1911 | B43: 0702 | C43: 622 | G43: - | H43: 106.8 | I43: - | K43: 106.8 | L43: 1 | M43: -
A44: Техническое оснащение муниципальных музеев | C44: Всего** | D44: =SUM(D47:D48)-D45 -> 0 | E44: =SUM(E47:E48)-E45 -> 0 | F44: =SUM(F47:F48)-F45 -> 0 | G44: - | H44: =SUM(H47:H48)-H45 -> 2790 | I44: - | J44: =SUM(J47:J48)-J45 -> 0 | K44: =SUM(K47:K48)-K45 -> 2239.6 | L44: 0.8027240143 | M44: -
C45: =IF(VALUE(C47)=0,"ВР(ОБ)",IF(VALUE(C47)>540,"ошибка",IF(VALUE(C47)<521,"ошибка",C47&"ОБ"))) -> 521ОБ | D45: =SUMIF($C47:$C48,$C47,D47:D48) -> 0 | E45: =SUMIF($C47:$C48,$C47,E47:E48) -> 0 | F45: =SUMIF($C47:$C48,$C47,F47:F48) -> 0 | G45: - | H45: =SUMIF($C47:$C48,$C47,H47:H48) -> 2767.6 | I45: - | J45: =SUMIF($C47:$C48,$C47,J47:J48) -> 0 | K45: =SUMIF($C47:$C48,$C47,K47:K48) -> 2217.2 | L45: 0.8011273305 | M45: -
C46: УС*** | D46: =IF(D44<>0,IFERROR(D45/D44,"-"),"-") -> - | E46: =IF(E44<>0,IFERROR(E45/E44,"-"),"-") -> - | F46: =IF(F44<>0,IFERROR(F45/F44,"-"),"-") -> - | G46: - | H46: =IF(H44<>0,IFERROR(H45/H44,"-"),"-") -> 0.9919713262 | I46: - | J46: =IF(J44<>0,IFERROR(J45/J44,"-"),"-") -> - | K46: =IF(K44<>0,IFERROR(K45/K44,"-"),"-") -> 0.989998214 | L46: 0.9980109181 | M46: -
A47: 55900 | B47: 0801 | C47: 521 | G47: - | H47: 2767.6 | I47: - | K47: 2217.2 | L47: 0.8011273305 | M47: -
A48: 55900 | B48: 0801 | C48: 244 | G48: - | H48: 2790 | I48: - | K48: 2239.6 | L48: 0.8027240143 | M48: -
A49: Осуществление мероприятий за счет остатков неиспользованных бюджетных ассигнований прошлых лет, предоставленных на осуществление капитальных вложений в объекты капитального строительства государственной (муниципальной) собственности (Реконструкция очистных сооружений в пос. Рыбачий Зеленоградского района, Калининградской области) | C49: Всего** | D49: =SUM(D52:D53)-D50 -> 0 | E49: =SUM(E52:E53)-E50 -> 0 | F49: =SUM(F52:F53)-F50 -> 0 | G49: - | H49: =SUM(H52:H53)-H50 -> 2439.7 | I49: - | J49: =SUM(J52:J53)-J50 -> 0 | K49: =SUM(K52:K53)-K50 -> 0 | L49: 0 | M49: -
C50: =IF(VALUE(C52)=0,"ВР(ОБ)",IF(VALUE(C52)>540,"ошибка",IF(VALUE(C52)<521,"ошибка",C52&"ОБ"))) -> 522ОБ | D50: =SUMIF($C52:$C53,$C52,D52:D53) -> 0 | E50: =SUMIF($C52:$C53,$C52,E52:E53) -> 0 | F50: =SUMIF($C52:$C53,$C52,F52:F53) -> 0 | G50: - | H50: =SUMIF($C52:$C53,$C52,H52:H53) -> 2439.7 | I50: - | J50: =SUMIF($C52:$C53,$C52,J52:J53) -> 0 | K50: =SUMIF($C52:$C53,$C52,K52:K53) -> 0 | L50: 0 | M50: -
C51: УС*** | D51: =IF(D49<>0,IFERROR(D50/D49,"-"),"-") -> - | E51: =IF(E49<>0,IFERROR(E50/E49,"-"),"-") -> - | F51: =IF(F49<>0,IFERROR(F50/F49,"-"),"-") -> - | G51: - | H51: =IF(H49<>0,IFERROR(H50/H49,"-"),"-") -> 1 | I51: - | J51: =IF(J49<>0,IFERROR(J50/J49,"-"),"-") -> - | K51: =IF(K49<>0,IFERROR(K50/K49,"-"),"-") -> - | L51: - | M51: -
A52: 26003 | B52: 0502 | C52: 522 | G52: - | H52: 2439.7 | I52: - | L52: 0 | M52: -
A53: S6003 | B53: 0502 | C53: 414 | G53: - | H53: 2439.7 | I53: - | L53: 0 | M53: -
A54: Осуществление мероприятий за счет остатков неиспользованных бюджетных ассигнований прошлых лет, предоставленных на осуществление капитальных вложений в объекты капитального строительства государственной (муниципальной) собственности (Межпоселковый газопровод высокого давления от ГРС Калининград-2, через поселки Кузнецкое, Волошино, Куликово, Зеленый Гай, с установкой ШРП (4 шт.) до ГРС Светлогорск I и II этапы) | C54: Всего** | D54: =SUM(D57:D58)-D55 -> 0 | E54: =SUM(E57:E58)-E55 -> 0 | F54: =SUM(F57:F58)-F55 -> 0 | G54: - | H54: =SUM(H57:H58)-H55 -> 128524.5 | I54: - | J54: =SUM(J57:J58)-J55 -> 0 | K54: =SUM(K57:K58)-K55 -> 128524.4 | L54: 0.9999992219 | M54: -
C55: =IF(VALUE(C57)=0,"ВР(ОБ)",IF(VALUE(C57)>540,"ошибка",IF(VALUE(C57)<521,"ошибка",C57&"ОБ"))) -> 522ОБ | D55: =SUMIF($C57:$C58,$C57,D57:D58) -> 0 | E55: =SUMIF($C57:$C58,$C57,E57:E58) -> 0 | F55: =SUMIF($C57:$C58,$C57,F57:F58) -> 0 | G55: - | H55: =SUMIF($C57:$C58,$C57,H57:H58) -> 128524.5 | I55: - | J55: =SUMIF($C57:$C58,$C57,J57:J58) -> 0 | K55: =SUMIF($C57:$C58,$C57,K57:K58) -> 128524.4 | L55: 0.9999992219 | M55: -
C56: УС*** | D56: =IF(D54<>0,IFERROR(D55/D54,"-"),"-") -> - | E56: =IF(E54<>0,IFERROR(E55/E54,"-"),"-") -> - | F56: =IF(F54<>0,IFERROR(F55/F54,"-"),"-") -> - | G56: - | H56: =IF(H54<>0,IFERROR(H55/H54,"-"),"-") -> 1 | I56: - | J56: =IF(J54<>0,IFERROR(J55/J54,"-"),"-") -> - | K56: =IF(K54<>0,IFERROR(K55/K54,"-"),"-") -> 1 | L56: 1 | M56: -
A57: 26015 | B57: 0502 | C57: 522 | G57: - | H57: 128524.5 | I57: - | K57: 128524.4 | L57: 0.9999992219 | M57: -
A58: 26015 | B58: 0502 | C58: 414 | G58: - | H58: 128524.5 | I58: - | K58: 128524.4 | L58: 0.9999992219 | M58: -
A59: Субсидии на обеспечение присмотра и ухода за детьми, осваивающими образовательные программы дошкольного образования в организациях, осуществляющих образовательную деятельность, в части обеспечения питанием всех категорий воспитанников за счет средств резервного фонда Правительства Калининградской области | C59: Всего** | D59: =SUM(D62:D63)-D60 -> 0 | E59: =SUM(E62:E63)-E60 -> 0 | F59: =SUM(F62:F63)-F60 -> 0 | G59: - | H59: =SUM(H62:H63)-H60 -> 4436.6 | I59: - | J59: =SUM(J62:J63)-J60 -> 0 | K59: =SUM(K62:K63)-K60 -> 1208.4 | L59: 0.2723707343 | M59: -
C60: =IF(VALUE(C62)=0,"ВР(ОБ)",IF(VALUE(C62)>540,"ошибка",IF(VALUE(C62)<521,"ошибка",C62&"ОБ"))) -> 521ОБ | D60: =SUMIF($C62:$C63,$C62,D62:D63) -> 0 | E60: =SUMIF($C62:$C63,$C62,E62:E63) -> 0 | F60: =SUMIF($C62:$C63,$C62,F62:F63) -> 0 | G60: - | H60: =SUMIF($C62:$C63,$C62,H62:H63) -> 2218.3 | I60: - | J60: =SUMIF($C62:$C63,$C62,J62:J63) -> 0 | K60: =SUMIF($C62:$C63,$C62,K62:K63) -> 604.2 | L60: 0.2723707343 | M60: -
C61: УС*** | D61: =IF(D59<>0,IFERROR(D60/D59,"-"),"-") -> - | E61: =IF(E59<>0,IFERROR(E60/E59,"-"),"-") -> - | F61: =IF(F59<>0,IFERROR(F60/F59,"-"),"-") -> - | G61: - | H61: =IF(H59<>0,IFERROR(H60/H59,"-"),"-") -> 0.5 | I61: - | J61: =IF(J59<>0,IFERROR(J60/J59,"-"),"-") -> - | K61: =IF(K59<>0,IFERROR(K60/K59,"-"),"-") -> 0.5 | L61: 1 | M61: -
A62: 2191П | B62: 0701 | C62: 521 | G62: - | H62: 2218.3 | I62: - | K62: 604.2 | L62: 0.2723707343 | M62: -
A63: S1912 | B63: 0701 | C63: 621 | G63: - | H63: 4436.6 | I63: - | K63: 1208.4 | L63: 0.2723707343 | M63: -
A64: Единовременные денежные выплаты за счет средств резервного фонда Правительства Калининградской области | C64: Всего** | D64: =SUM(D67:D68)-D65 -> 0 | E64: =SUM(E67:E68)-E65 -> 0 | F64: =SUM(F67:F68)-F65 -> 0 | G64: - | H64: =SUM(H67:H68)-H65 -> 3257.6 | I64: - | J64: =SUM(J67:J68)-J65 -> 0 | K64: =SUM(K67:K68)-K65 -> 2999.8 | L64: 0.9208619843 | M64: -
C65: =IF(VALUE(C67)=0,"ВР(ОБ)",IF(VALUE(C67)>540,"ошибка",IF(VALUE(C67)<521,"ошибка",C67&"ОБ"))) -> 540ОБ | D65: =SUMIF($C67:$C68,$C67,D67:D68) -> 0 | E65: =SUMIF($C67:$C68,$C67,E67:E68) -> 0 | F65: =SUMIF($C67:$C68,$C67,F67:F68) -> 0 | G65: - | H65: =SUMIF($C67:$C68,$C67,H67:H68) -> 3257.6 | I65: - | J65: =SUMIF($C67:$C68,$C67,J67:J68) -> 0 | K65: =SUMIF($C67:$C68,$C67,K67:K68) -> 2999.8 | L65: 0.9208619843 | M65: -
C66: УС*** | D66: =IF(D64<>0,IFERROR(D65/D64,"-"),"-") -> - | E66: =IF(E64<>0,IFERROR(E65/E64,"-"),"-") -> - | F66: =IF(F64<>0,IFERROR(F65/F64,"-"),"-") -> - | G66: - | H66: =IF(H64<>0,IFERROR(H65/H64,"-"),"-") -> 1 | I66: - | J66: =IF(J64<>0,IFERROR(J65/J64,"-"),"-") -> - | K66: =IF(K64<>0,IFERROR(K65/K64,"-"),"-") -> 1 | L66: 1 | M66: -
A67: 21911 | B67: 0701 | C67: 540 | G67: - | H67: 3257.6 | I67: - | K67: 2999.8 | L67: 0.9208619843 | M67: -
A68: S1913 | B68: 0701 | C68: 622 | G68: - | H68: 3257.6 | I68: - | K68: 2999.8 | L68: 0.9208619843 | M68: -
A69: Единовременные денежные выплаты за счет средств резервного фонда Правительства Калининградской области | C69: Всего** | D69: =SUM(D72:D73)-D70 -> 0 | E69: =SUM(E72:E73)-E70 -> 0 | F69: =SUM(F72:F73)-F70 -> 0 | G69: - | H69: =SUM(H72:H73)-H70 -> 4406 | I69: - | J69: =SUM(J72:J73)-J70 -> 0 | K69: =SUM(K72:K73)-K70 -> 4351.3 | L69: 0.9875851112 | M69: -
C70: =IF(VALUE(C72)=0,"ВР(ОБ)",IF(VALUE(C72)>540,"ошибка",IF(VALUE(C72)<521,"ошибка",C72&"ОБ"))) -> 540ОБ | D70: =SUMIF($C72:$C73,$C72,D72:D73) -> 0 | E70: =SUMIF($C72:$C73,$C72,E72:E73) -> 0 | F70: =SUMIF($C72:$C73,$C72,F72:F73) -> 0 | G70: - | H70: =SUMIF($C72:$C73,$C72,H72:H73) -> 4406 | I70: - | J70: =SUMIF($C72:$C73,$C72,J72:J73) -> 0 | K70: =SUMIF($C72:$C73,$C72,K72:K73) -> 4351.3 | L70: 0.9875851112 | M70: -
C71: УС*** | D71: =IF(D69<>0,IFERROR(D70/D69,"-"),"-") -> - | E71: =IF(E69<>0,IFERROR(E70/E69,"-"),"-") -> - | F71: =IF(F69<>0,IFERROR(F70/F69,"-"),"-") -> - | G71: - | H71: =IF(H69<>0,IFERROR(H70/H69,"-"),"-") -> 1 | I71: - | J71: =IF(J69<>0,IFERROR(J70/J69,"-"),"-") -> - | K71: =IF(K69<>0,IFERROR(K70/K69,"-"),"-") -> 1 | L71: 1 | M71: -
A72: 21911 | B72: 0702 | C72: 540 | G72: - | H72: 4406 | I72: - | K72: 4351.3 | L72: 0.9875851112 | M72: -
A73: S1913 | B73: 0702 | C73: 622 | G73: - | H73: 4406 | I73: - | K73: 4351.3 | L73: 0.9875851112 | M73: -
A74: Единовременные денежные выплаты за счет средств резервного фонда Правительства Калининградской област | C74: Всего** | D74: =SUM(D77:D78)-D75 -> 0 | E74: =SUM(E77:E78)-E75 -> 0 | F74: =SUM(F77:F78)-F75 -> 0 | G74: - | H74: =SUM(H77:H78)-H75 -> 960.9 | I74: - | J74: =SUM(J77:J78)-J75 -> 0 | K74: =SUM(K77:K78)-K75 -> 960.9 | L74: 1 | M74: -
C75: =IF(VALUE(C77)=0,"ВР(ОБ)",IF(VALUE(C77)>540,"ошибка",IF(VALUE(C77)<521,"ошибка",C77&"ОБ"))) -> 540ОБ | D75: =SUMIF($C77:$C78,$C77,D77:D78) -> 0 | E75: =SUMIF($C77:$C78,$C77,E77:E78) -> 0 | F75: =SUMIF($C77:$C78,$C77,F77:F78) -> 0 | G75: - | H75: =SUMIF($C77:$C78,$C77,H77:H78) -> 960.9 | I75: - | J75: =SUMIF($C77:$C78,$C77,J77:J78) -> 0 | K75: =SUMIF($C77:$C78,$C77,K77:K78) -> 960.9 | L75: 1 | M75: -
C76: УС*** | D76: =IF(D74<>0,IFERROR(D75/D74,"-"),"-") -> - | E76: =IF(E74<>0,IFERROR(E75/E74,"-"),"-") -> - | F76: =IF(F74<>0,IFERROR(F75/F74,"-"),"-") -> - | G76: - | H76: =IF(H74<>0,IFERROR(H75/H74,"-"),"-") -> 1 | I76: - | J76: =IF(J74<>0,IFERROR(J75/J74,"-"),"-") -> - | K76: =IF(K74<>0,IFERROR(K75/K74,"-"),"-") -> 1 | L76: 1 | M76: -
A77: 21911 | B77: 0703 | C77: 540 | G77: - | H77: 960.9 | I77: - | K77: 960.9 | L77: 1 | M77: -
A78: S1913 | B78: 0703 | C78: 622 | G78: - | H78: 960.9 | I78: - | K78: 960.9 | L78: 1 | M78: -
A79: Государственная поддержка отрасли культуры (поддержка лучших сельских учреждений культуры и лучших работников сельских учреждений культуры) | C79: Всего** | D79: =SUM(D82:D83)-D80 -> 0 | E79: =SUM(E82:E83)-E80 -> 0 | F79: =SUM(F82:F83)-F80 -> 0 | G79: - | H79: =SUM(H82:H83)-H80 -> 121.4 | I79: - | J79: =SUM(J82:J83)-J80 -> 0 | K79: =SUM(K82:K83)-K80 -> 121.4 | L79: 1 | M79: -
C80: =IF(VALUE(C82)=0,"ВР(ОБ)",IF(VALUE(C82)>540,"ошибка",IF(VALUE(C82)<521,"ошибка",C82&"ОБ"))) -> 540ОБ | D80: =SUMIF($C82:$C83,$C82,D82:D83) -> 0 | E80: =SUMIF($C82:$C83,$C82,E82:E83) -> 0 | F80: =SUMIF($C82:$C83,$C82,F82:F83) -> 0 | G80: - | H80: =SUMIF($C82:$C83,$C82,H82:H83) -> 121.4 | I80: - | J80: =SUMIF($C82:$C83,$C82,J82:J83) -> 0 | K80: =SUMIF($C82:$C83,$C82,K82:K83) -> 121.4 | L80: 1 | M80: -
C81: УС*** | D81: =IF(D79<>0,IFERROR(D80/D79,"-"),"-") -> - | E81: =IF(E79<>0,IFERROR(E80/E79,"-"),"-") -> - | F81: =IF(F79<>0,IFERROR(F80/F79,"-"),"-") -> - | G81: - | H81: =IF(H79<>0,IFERROR(H80/H79,"-"),"-") -> 1 | I81: - | J81: =IF(J79<>0,IFERROR(J80/J79,"-"),"-") -> - | K81: =IF(K79<>0,IFERROR(K80/K79,"-"),"-") -> 1 | L81: 1 | M81: -
A82: A255194 | B82: 0801 | C82: 540 | G82: - | H82: 121.4 | I82: - | K82: 121.4 | L82: 1 | M82: -
A83: A255194 | B83: 0801 | C83: 622 | G83: - | H83: 121.4 | I83: - | K83: 121.4 | L83: 1 | M83: -
A84: Озеленение территории дюн от западной части г. Зеленоградска до реки Алейки Калининградской области за счет средств резервного фонда Правительства Калинингрдской облсти | C84: Всего** | D84: =SUM(D87:D88)-D85 -> 0 | E84: =SUM(E87:E88)-E85 -> 0 | F84: =SUM(F87:F88)-F85 -> 0 | G84: - | H84: =SUM(H87:H88)-H85 -> 20438.5 | I84: - | J84: =SUM(J87:J88)-J85 -> 0 | K84: =SUM(K87:K88)-K85 -> 0 | L84: 0 | M84: -
C85: =IF(VALUE(C87)=0,"ВР(ОБ)",IF(VALUE(C87)>540,"ошибка",IF(VALUE(C87)<521,"ошибка",C87&"ОБ"))) -> 523ОБ | D85: =SUMIF($C87:$C88,$C87,D87:D88) -> 0 | E85: =SUMIF($C87:$C88,$C87,E87:E88) -> 0 | F85: =SUMIF($C87:$C88,$C87,F87:F88) -> 0 | G85: - | H85: =SUMIF($C87:$C88,$C87,H87:H88) -> 20438.5 | I85: - | J85: =SUMIF($C87:$C88,$C87,J87:J88) -> 0 | K85: =SUMIF($C87:$C88,$C87,K87:K88) -> 0 | L85: 0 | M85: -
C86: УС*** | D86: =IF(D84<>0,IFERROR(D85/D84,"-"),"-") -> - | E86: =IF(E84<>0,IFERROR(E85/E84,"-"),"-") -> - | F86: =IF(F84<>0,IFERROR(F85/F84,"-"),"-") -> - | G86: - | H86: =IF(H84<>0,IFERROR(H85/H84,"-"),"-") -> 1 | I86: - | J86: =IF(J84<>0,IFERROR(J85/J84,"-"),"-") -> - | K86: =IF(K84<>0,IFERROR(K85/K84,"-"),"-") -> - | L86: - | M86: -
A87: 2191Г | B87: 0503 | C87: 523 | G87: - | H87: 20438.5 | I87: - | L87: 0 | M87: -
A88: 2191Г | B88: 0503 | C88: 244 | G88: - | H88: 20438.5 | I88: - | L88: 0 | M88: -
A89: Субсидии на ремонт автомобильных дорог общего пользования местного значения | C89: Всего** | D89: =SUM(D92:D94)-D90 -> 54721.7 | E89: =SUM(E92:E94)-E90 -> 0 | F89: =SUM(F92:F94)-F90 -> 0 | G89: 0 | H89: =SUM(H92:H94)-H90 -> 0 | I89: - | J89: =SUM(J92:J94)-J90 -> 0 | K89: =SUM(K92:K94)-K90 -> 0 | L89: - | M89: -
C90: =IF(VALUE(C92)=0,"ВР(ОБ)",IF(VALUE(C92)>540,"ошибка",IF(VALUE(C92)<521,"ошибка",C92&"ОБ"))) -> 521ОБ | D90: =SUMIF($C92:$C94,$C92,D92:D94) -> 53036.1 | E90: =SUMIF($C92:$C94,$C92,E92:E94) -> 0 | F90: =SUMIF($C92:$C94,$C92,F92:F94) -> 0 | G90: =IF(D90<>0,IFERROR(F90/D90,"-"),"-") -> 0 | H90: =SUMIF($C92:$C94,$C92,H92:H94) -> 0 | I90: =IF(F90<>0,IFERROR(H90/F90,"-"),"-") -> - | J90: =SUMIF($C92:$C94,$C92,J92:J94) -> 0 | K90: =SUMIF($C92:$C94,$C92,K92:K94) -> 0 | L90: =IF(H90<>0,IFERROR(K90/H90,"-"),"-") -> - | M90: =IF(J90<>0,IFERROR(K90/J90,"-"),"-") -> -
C91: УС*** | D91: =IF(D89<>0,IFERROR(D90/D89,"-"),"-") -> 0.9691968634 | E91: =IF(E89<>0,IFERROR(E90/E89,"-"),"-") -> - | F91: =IF(F89<>0,IFERROR(F90/F89,"-"),"-") -> - | G91: - | H91: =IF(H89<>0,IFERROR(H90/H89,"-"),"-") -> - | I91: - | J91: =IF(J89<>0,IFERROR(J90/J89,"-"),"-") -> - | K91: =IF(K89<>0,IFERROR(K90/K89,"-"),"-") -> - | L91: - | M91: -
A92: 71230 | B92: 0409 | C92: 521 | D92: 53036.1 | G92: 0 | I92: - | L92: - | M92: -
A93: S1230 | B93: 0409 | C93: 243 | D93: 54721.7 | G93: 0 | I93: - | L93: - | M93: -
A94: S1230 | B94: 0409 | C94: 414 | G94: - | I94: - | L94: - | M94: -
A95: Иные межбюджетные трансферты на поддержку учреждений клубного типа, библиотек, музеев и работников указанных учреждений | C95: Всего** | D95: =SUM(D98:D99)-D96 -> 0 | E95: =SUM(E98:E99)-E96 -> 0 | F95: =SUM(F98:F99)-F96 -> 0 | G95: - | H95: =SUM(H98:H99)-H96 -> 39.9 | I95: - | J95: =SUM(J98:J99)-J96 -> 0 | K95: =SUM(K98:K99)-K96 -> 39.9 | L95: 1 | M95: -
C96: =IF(VALUE(C98)=0,"ВР(ОБ)",IF(VALUE(C98)>540,"ошибка",IF(VALUE(C98)<521,"ошибка",C98&"ОБ"))) -> 540ОБ | D96: =SUMIF($C98:$C99,$C98,D98:D99) -> 0 | E96: =SUMIF($C98:$C99,$C98,E98:E99) -> 0 | F96: =SUMIF($C98:$C99,$C98,F98:F99) -> 0 | G96: - | H96: =SUMIF($C98:$C99,$C98,H98:H99) -> 39.9 | I96: - | J96: =SUMIF($C98:$C99,$C98,J98:J99) -> 0 | K96: =SUMIF($C98:$C99,$C98,K98:K99) -> 39.9 | L96: 1 | M96: -
C97: УС*** | D97: =IF(D95<>0,IFERROR(D96/D95,"-"),"-") -> - | E97: =IF(E95<>0,IFERROR(E96/E95,"-"),"-") -> - | F97: =IF(F95<>0,IFERROR(F96/F95,"-"),"-") -> - | G97: - | H97: =IF(H95<>0,IFERROR(H96/H95,"-"),"-") -> 1 | I97: - | J97: =IF(J95<>0,IFERROR(J96/J95,"-"),"-") -> - | K97: =IF(K95<>0,IFERROR(K96/K95,"-"),"-") -> 1 | L97: 1 | M97: -
A98: 74080 | B98: 0801 | C98: 540 | G98: - | H98: 39.9 | I98: - | K98: 39.9 | L98: 1 | M98: -
A99: 74080 | B99: 0801 | C99: 622 | G99: - | H99: 39.9 | I99: - | K99: 39.9 | L99: 1 | M99: -
A100: Обеспечение оснащения государственных и муниципальных общеобразовательных организаций, в том числе структурных подразделений указанных организаций, государственными символами Российской Федерации | C100: Всего** | D100: =SUM(D103:D104)-D101 -> 0 | E100: =SUM(E103:E104)-E101 -> 0 | F100: =SUM(F103:F104)-F101 -> 0 | G100: - | H100: =SUM(H103:H104)-H101 -> 729.7 | I100: - | J100: =SUM(J103:J104)-J101 -> 0 | K100: =SUM(K103:K104)-K101 -> 729.7 | L100: 1 | M100: -
C101: =IF(VALUE(C103)=0,"ВР(ОБ)",IF(VALUE(C103)>540,"ошибка",IF(VALUE(C103)<521,"ошибка",C103&"ОБ"))) -> 521ОБ | D101: =SUMIF($C103:$C104,$C103,D103:D104) -> 0 | E101: =SUMIF($C103:$C104,$C103,E103:E104) -> 0 | F101: =SUMIF($C103:$C104,$C103,F103:F104) -> 0 | G101: - | H101: =SUMIF($C103:$C104,$C103,H103:H104) -> 722.5 | I101: - | J101: =SUMIF($C103:$C104,$C103,J103:J104) -> 0 | K101: =SUMIF($C103:$C104,$C103,K103:K104) -> 722.5 | L101: 1 | M101: -
C102: УС*** | D102: =IF(D100<>0,IFERROR(D101/D100,"-"),"-") -> - | E102: =IF(E100<>0,IFERROR(E101/E100,"-"),"-") -> - | F102: =IF(F100<>0,IFERROR(F101/F100,"-"),"-") -> - | G102: - | H102: =IF(H100<>0,IFERROR(H101/H100,"-"),"-") -> 0.9901329313 | I102: - | J102: =IF(J100<>0,IFERROR(J101/J100,"-"),"-") -> - | K102: =IF(K100<>0,IFERROR(K101/K100,"-"),"-") -> 0.9901329313 | L102: 1 | M102: -
A103: 57860 | B103: 0702 | C103: 521 | G103: - | H103: 722.5 | I103: - | K103: 722.5 | L103: 1 | M103: -
A104: 57860 | B104: 0702 | C104: 622 | G104: - | H104: 729.7 | I104: - | K104: 729.7 | L104: 1 | M104: -
A105: Оснащение геральдической символикой Калининградской области государственных и муниципальных общеобразовательных организаций Калининградской области за счет средств резервного фонда Правительства Калининградской области | C105: Всего** | D105: =SUM(D108:D109)-D106 -> 0 | E105: =SUM(E108:E109)-E106 -> 0 | F105: =SUM(F108:F109)-F106 -> 0 | G105: - | H105: =SUM(H108:H109)-H106 -> 738.9 | I105: - | J105: =SUM(J108:J109)-J106 -> 0 | K105: =SUM(K108:K109)-K106 -> 738.9 | L105: 1 | M105: -
C106: =IF(VALUE(C108)=0,"ВР(ОБ)",IF(VALUE(C108)>540,"ошибка",IF(VALUE(C108)<521,"ошибка",C108&"ОБ"))) -> 521ОБ | D106: =SUMIF($C108:$C109,$C108,D108:D109) -> 0 | E106: =SUMIF($C108:$C109,$C108,E108:E109) -> 0 | F106: =SUMIF($C108:$C109,$C108,F108:F109) -> 0 | G106: - | H106: =SUMIF($C108:$C109,$C108,H108:H109) -> 738.2 | I106: - | J106: =SUMIF($C108:$C109,$C108,J108:J109) -> 0 | K106: =SUMIF($C108:$C109,$C108,K108:K109) -> 738.2 | L106: 1 | M106: -
C107: УС*** | D107: =IF(D105<>0,IFERROR(D106/D105,"-"),"-") -> - | E107: =IF(E105<>0,IFERROR(E106/E105,"-"),"-") -> - | F107: =IF(F105<>0,IFERROR(F106/F105,"-"),"-") -> - | G107: - | H107: =IF(H105<>0,IFERROR(H106/H105,"-"),"-") -> 0.9990526458 | I107: - | J107: =IF(J105<>0,IFERROR(J106/J105,"-"),"-") -> - | K107: =IF(K105<>0,IFERROR(K106/K105,"-"),"-") -> 0.9990526458 | L107: 1 | M107: -
A108: 2191С | B108: 0702 | C108: 521 | G108: - | H108: 738.2 | I108: - | K108: 738.2 | L108: 1 | M108: -
A109: S191C | B109: 0702 | C109: 622 | G109: - | H109: 738.9 | I109: - | K109: 738.9 | L109: 1 | M109: -
A110: Субсидии на модернизацию автобусного парка муниципальных образований, осуществляющих бесплатную перевозку обучающихся к месту учебы | C110: Всего** | D110: =SUM(D113:D114)-D111 -> 2035.3 | E110: =SUM(E113:E114)-E111 -> 678.4 | F110: =SUM(F113:F114)-F111 -> 678.4 | G110: 0.3333169557 | H110: =SUM(H113:H114)-H111 -> 0 | I110: 0 | J110: =SUM(J113:J114)-J111 -> 678.4 | K110: =SUM(K113:K114)-K111 -> 0 | L110: - | M110: 0
C111: =IF(VALUE(C113)=0,"ВР(ОБ)",IF(VALUE(C113)>540,"ошибка",IF(VALUE(C113)<521,"ошибка",C113&"ОБ"))) -> 521ОБ | D111: =SUMIF($C113:$C114,$C113,D113:D114) -> 1933.5 | E111: =SUMIF($C113:$C114,$C113,E113:E114) -> 644.4 | F111: =SUMIF($C113:$C114,$C113,F113:F114) -> 644.4 | G111: 0.3332816137 | H111: =SUMIF($C113:$C114,$C113,H113:H114) -> 0 | I111: 0 | J111: =SUMIF($C113:$C114,$C113,J113:J114) -> 644.4 | K111: =SUMIF($C113:$C114,$C113,K113:K114) -> 0 | L111: - | M111: 0
C112: УС*** | D112: =IF(D110<>0,IFERROR(D111/D110,"-"),"-") -> 0.9499828035 | E112: =IF(E110<>0,IFERROR(E111/E110,"-"),"-") -> 0.9498820755 | F112: =IF(F110<>0,IFERROR(F111/F110,"-"),"-") -> 0.9498820755 | G112: 0.9998939686 | H112: =IF(H110<>0,IFERROR(H111/H110,"-"),"-") -> - | I112: - | J112: =IF(J110<>0,IFERROR(J111/J110,"-"),"-") -> 0.9498820755 | K112: =IF(K110<>0,IFERROR(K111/K110,"-"),"-") -> - | L112: - | M112: -
A113: 71280 | B113: 0702 | C113: 521 | D113: 1933.5 | E113: 644.4 | F113: 644.4 | G113: 0.3332816137 | I113: 0 | J113: 644.4 | L113: - | M113: 0
A114: S1280 | B114: 0702 | C114: 244 | D114: 2035.3 | E114: 678.4 | F114: 678.4 | G114: 0.3333169557 | I114: 0 | J114: 678.4 | L114: - | M114: 0
A115: Субсидии на капитальный ремонт и ремонт автомобильных дорог общего пользования местного значения и искусственных сооружений на них в населенных пунктах Калининградской области | C115: Всего** | D115: =SUM(D118:D121)-D116 -> 11615.7 | E115: =SUM(E118:E121)-E116 -> 53606 | F115: =SUM(F118:F121)-F116 -> 7202 | G115: 0.6200229 | H115: =SUM(H118:H121)-H116 -> 2970 | I115: 0.4123854485 | J115: =SUM(J118:J121)-J116 -> 6977.9 | K115: =SUM(K118:K121)-K116 -> 2916.4 | L115: 0.981952862 | M115: 0.4179480933
C116: =IF(VALUE(C118)=0,"ВР(ОБ)",IF(VALUE(C118)>540,"ошибка",IF(VALUE(C118)<521,"ошибка",C118&"ОБ"))) -> 521ОБ | D116: =SUMIF($C118:$C121,$C118,D118:D121) -> 11272.2 | E116: =SUMIF($C118:$C121,$C118,E118:E121) -> 52647.1 | F116: =SUMIF($C118:$C121,$C118,F118:F121) -> 6243.1 | G116: 0.553849293 | H116: =SUMIF($C118:$C121,$C118,H118:H121) -> 2970 | I116: 0.4757252006 | J116: =SUMIF($C118:$C121,$C118,J118:J121) -> 6018.9 | K116: =SUMIF($C118:$C121,$C118,K118:K121) -> 2916.4 | L116: 0.981952862 | M116: 0.4845403645
C117: УС*** | D117: =IF(D115<>0,IFERROR(D116/D115,"-"),"-") -> 0.9704279553 | E117: =IF(E115<>0,IFERROR(E116/E115,"-"),"-") -> 0.982112077 | F117: =IF(F115<>0,IFERROR(F116/F115,"-"),"-") -> 0.8668564288 | G117: 0.8932723177 | H117: =IF(H115<>0,IFERROR(H116/H115,"-"),"-") -> 1 | I117: 1.153593567 | J117: =IF(J115<>0,IFERROR(J116/J115,"-"),"-") -> 0.8625661015 | K117: =IF(K115<>0,IFERROR(K116/K115,"-"),"-") -> 1 | L117: 1 | M117: 1.159331439
A118: 71220 | B118: 0409 | C118: 521 | D118: 11272.2 | E118: 52647.1 | F118: 6243.1 | G118: 0.553849293 | H118: 2970 | I118: 0.4757252006 | J118: 6018.9 | K118: 2916.4 | L118: 0.981952862 | M118: 0.4845403645
A119: S1220 | B119: 0409 | C119: 243 | D119: 9025.9 | E119: 53606 | F119: 7202 | G119: 0.7979259686 | I119: 0 | J119: 6977.9 | L119: - | M119: 0
A120: S1220 | B120: 0409 | C120: 244 | D120: 2589.8 | G120: 0 | H120: 2970 | I120: - | K120: 2916.4 | L120: 0.981952862 | M120: -
A121: S1220 | B121: 0409 | C121: 414 | G121: - | I121: - | L121: - | M121: -
A122: Субсидии на обеспечение комплексного развития сельских территорий (улучшение жилищных условий граждан Российской Федерации, проживающих на сельских территориях | C122: Всего** | D122: =SUM(D125:D126)-D123 -> 1323.7 | E122: =SUM(E125:E126)-E123 -> 1502.4 | F122: =SUM(F125:F126)-F123 -> 1502.4 | G122: 1.135000378 | H122: =SUM(H125:H126)-H123 -> 0 | I122: 0 | J122: =SUM(J125:J126)-J123 -> 1502.4 | K122: =SUM(K125:K126)-K123 -> 0 | L122: - | M122: 0
C123: =IF(VALUE(C125)=0,"ВР(ОБ)",IF(VALUE(C125)>540,"ошибка",IF(VALUE(C125)<521,"ошибка",C125&"ОБ"))) -> 521ОБ | D123: =SUMIF($C125:$C126,$C125,D125:D126) -> 1257.5 | E123: =SUMIF($C125:$C126,$C125,E125:E126) -> 1487.4 | F123: =SUMIF($C125:$C126,$C125,F125:F126) -> 1487.4 | G123: 1.182823062 | H123: =SUMIF($C125:$C126,$C125,H125:H126) -> 0 | I123: 0 | J123: =SUMIF($C125:$C126,$C125,J125:J126) -> 1487.4 | K123: =SUMIF($C125:$C126,$C125,K125:K126) -> 0 | L123: - | M123: 0
C124: УС*** | D124: =IF(D122<>0,IFERROR(D123/D122,"-"),"-") -> 0.9499886681 | E124: =IF(E122<>0,IFERROR(E123/E122,"-"),"-") -> 0.9900159744 | F124: =IF(F122<>0,IFERROR(F123/F122,"-"),"-") -> 0.9900159744 | G124: 1.042134509 | H124: =IF(H122<>0,IFERROR(H123/H122,"-"),"-") -> - | I124: - | J124: =IF(J122<>0,IFERROR(J123/J122,"-"),"-") -> 0.9900159744 | K124: =IF(K122<>0,IFERROR(K123/K122,"-"),"-") -> - | L124: - | M124: -
A125: R5761 | B125: 1003 | C125: 521 | D125: 1257.5 | E125: 1487.4 | F125: 1487.4 | G125: 1.182823062 | I125: 0 | J125: 1487.4 | L125: - | M125: 0
A126: L5761 | B126: 1003 | C126: 322 | D126: 1323.7 | E126: 1502.4 | F126: 1502.4 | G126: 1.135000378 | I126: 0 | J126: 1502.4 | L126: - | M126: 0
A127: Субсидии на обеспечение комплексного развития сельских территорий (реализация мероприятия по благоустройству сельских территорий) | C127: Всего** | D127: =SUM(D130:D131)-D128 -> 11532.6 | E127: =SUM(E130:E131)-E128 -> 3201.7 | F127: =SUM(F130:F131)-F128 -> 2999.7 | G127: 0.2601061339 | H127: =SUM(H130:H131)-H128 -> 0 | I127: 0 | J127: =SUM(J130:J131)-J128 -> 2992 | K127: =SUM(K130:K131)-K128 -> 0 | L127: - | M127: 0
C128: =IF(VALUE(C130)=0,"ВР(ОБ)",IF(VALUE(C130)>540,"ошибка",IF(VALUE(C130)<521,"ошибка",C130&"ОБ"))) -> 521ОБ | D128: =SUMIF($C130:$C131,$C130,D130:D131) -> 7931.2 | E128: =SUMIF($C130:$C131,$C130,E130:E131) -> 2228.5 | F128: =SUMIF($C130:$C131,$C130,F130:F131) -> 2067 | G128: 0.2606163002 | H128: =SUMIF($C130:$C131,$C130,H130:H131) -> 0 | I128: 0 | J128: =SUMIF($C130:$C131,$C130,J130:J131) -> 2061.2 | K128: =SUMIF($C130:$C131,$C130,K130:K131) -> 0 | L128: - | M128: 0
C129: УС*** | D129: =IF(D127<>0,IFERROR(D128/D127,"-"),"-") -> 0.6877200284 | E129: =IF(E127<>0,IFERROR(E128/E127,"-"),"-") -> 0.6960364806 | F129: =IF(F127<>0,IFERROR(F128/F127,"-"),"-") -> 0.6890689069 | G129: 1.001961377 | H129: =IF(H127<>0,IFERROR(H128/H127,"-"),"-") -> - | I129: - | J129: =IF(J127<>0,IFERROR(J128/J127,"-"),"-") -> 0.6889037433 | K129: =IF(K127<>0,IFERROR(K128/K127,"-"),"-") -> - | L129: - | M129: -
A130: R5763 | B130: 0503 | C130: 521 | D130: 7931.2 | E130: 2228.5 | F130: 2067 | G130: 0.2606163002 | I130: 0 | J130: 2061.2 | L130: - | M130: 0
A131: L5763 | B131: 0503 | C131: 244 | D131: 11532.6 | E131: 3201.7 | F131: 2999.7 | G131: 0.2601061339 | I131: 0 | J131: 2992 | L131: - | M131: 0
A132: Субсидии на обеспечение мероприятий по организации теплоснабжения | C132: Всего** | D132: =SUM(D135:D137)-D133 -> 6606.6 | E132: =SUM(E135:E137)-E133 -> 1564.7 | F132: =SUM(F135:F137)-F133 -> 1564.7 | G132: 0.2368389187 | H132: =SUM(H135:H137)-H133 -> 0 | I132: 0 | J132: =SUM(J135:J137)-J133 -> 1564.7 | K132: =SUM(K135:K137)-K133 -> 0 | L132: - | M132: 0
C133: =IF(VALUE(C135)=0,"ВР(ОБ)",IF(VALUE(C135)>540,"ошибка",IF(VALUE(C135)<521,"ошибка",C135&"ОБ"))) -> 521ОБ | D133: =SUMIF($C135:$C137,$C135,D135:D137) -> 6600 | E133: =SUMIF($C135:$C137,$C135,E135:E137) -> 1563.1 | F133: =SUMIF($C135:$C137,$C135,F135:F137) -> 1563.1 | G133: 0.2368333333 | H133: =SUMIF($C135:$C137,$C135,H135:H137) -> 0 | I133: 0 | J133: =SUMIF($C135:$C137,$C135,J135:J137) -> 1563.1 | K133: =SUMIF($C135:$C137,$C135,K135:K137) -> 0 | L133: - | M133: 0
C134: УС*** | D134: =IF(D132<>0,IFERROR(D133/D132,"-"),"-") -> 0.999000999 | E134: =IF(E132<>0,IFERROR(E133/E132,"-"),"-") -> 0.9989774398 | F134: =IF(F132<>0,IFERROR(F133/F132,"-"),"-") -> 0.9989774398 | G134: 0.9999764172 | H134: =IF(H132<>0,IFERROR(H133/H132,"-"),"-") -> - | I134: - | J134: =IF(J132<>0,IFERROR(J133/J132,"-"),"-") -> 0.9989774398 | K134: =IF(K132<>0,IFERROR(K133/K132,"-"),"-") -> - | L134: - | M134: -
A135: 71310 | B135: 0502 | C135: 521 | D135: 6600 | E135: 1563.1 | F135: 1563.1 | G135: 0.2368333333 | I135: 0 | J135: 1563.1 | L135: - | M135: 0
A136: S1310 | B136: 0502 | C136: 843 | D136: 6606.6 | G136: 0 | I136: - | J136: 1564.7 | L136: - | M136: 0
A137: S1310 | B137: 0502 | C137: 811 | E137: 1564.7 | F137: 1564.7 | G137: - | I137: 0 | L137: - | M137: -
A138: Субсидии на поддержку муниципальных программ формирования современной городской среды на дворовые территории | C138: Всего** | D138: =SUM(D141:D143)-D139 -> 5027.1 | E138: =SUM(E141:E143)-E139 -> 6554.2 | F138: =SUM(F141:F143)-F139 -> 6395.8 | G138: 1.272264327 | H138: =SUM(H141:H143)-H139 -> 4600 | I138: 0.7192219894 | J138: =SUM(J141:J143)-J139 -> 6381.1 | K138: =SUM(K141:K143)-K139 -> 0 | L138: 0 | M138: 0
C139: =IF(VALUE(C141)=0,"ВР(ОБ)",IF(VALUE(C141)>540,"ошибка",IF(VALUE(C141)<521,"ошибка",C141&"ОБ"))) -> 521ОБ | D139: =SUMIF($C141:$C143,$C141,D141:D143) -> 2196.6 | E139: =SUMIF($C141:$C143,$C141,E141:E143) -> 2300 | F139: =SUMIF($C141:$C143,$C141,F141:F143) -> 2141.6 | G139: 0.9749613038 | H139: =SUMIF($C141:$C143,$C141,H141:H143) -> 2300 | I139: 1.073963392 | J139: =SUMIF($C141:$C143,$C141,J141:J143) -> 2126.8 | K139: =SUMIF($C141:$C143,$C141,K141:K143) -> 0 | L139: 0 | M139: 0
C140: УС*** | D140: =IF(D138<>0,IFERROR(D139/D138,"-"),"-") -> 0.4369517217 | E140: =IF(E138<>0,IFERROR(E139/E138,"-"),"-") -> 0.3509200208 | F140: =IF(F138<>0,IFERROR(F139/F138,"-"),"-") -> 0.3348447419 | G140: 0.7663197677 | H140: =IF(H138<>0,IFERROR(H139/H138,"-"),"-") -> 0.5 | I140: 1.493229361 | J140: =IF(J138<>0,IFERROR(J139/J138,"-"),"-") -> 0.333296767 | K140: =IF(K138<>0,IFERROR(K139/K138,"-"),"-") -> - | L140: - | M140: -
A141: 71070 | B141: 0503 | C141: 521 | D141: 2196.6 | E141: 2300 | F141: 2141.6 | G141: 0.9749613038 | H141: 2300 | I141: 1.073963392 | J141: 2126.8 | L141: 0 | M141: 0
A142: S1070 | B142: 0503 | C142: 244 | D142: 5027.1 | E142: 6554.2 | F142: 6395.8 | G142: 1.272264327 | H142: 4600 | I142: 0.7192219894 | J142: 6381.1 | L142: 0 | M142: 0
A143: S1070 | B143: 0503 | C143: 414 | G143: - | I143: - | L143: - | M143: -
A144: Субсидии на предоставление молодым семьям дополнительных социальных выплат при рождении или усыновлении (удочерении) ребенка | C144: Всего** | D144: =SUM(D147:D148)-D145 -> 81 | E144: =SUM(E147:E148)-E145 -> 0 | F144: =SUM(F147:F148)-F145 -> 0 | G144: 0 | H144: =SUM(H147:H148)-H145 -> 0 | I144: - | J144: =SUM(J147:J148)-J145 -> 0 | K144: =SUM(K147:K148)-K145 -> 0 | L144: - | M144: -
C145: =IF(VALUE(C147)=0,"ВР(ОБ)",IF(VALUE(C147)>540,"ошибка",IF(VALUE(C147)<521,"ошибка",C147&"ОБ"))) -> 521ОБ | D145: =SUMIF($C147:$C148,$C147,D147:D148) -> 81 | E145: =SUMIF($C147:$C148,$C147,E147:E148) -> 0 | F145: =SUMIF($C147:$C148,$C147,F147:F148) -> 0 | G145: 0 | H145: =SUMIF($C147:$C148,$C147,H147:H148) -> 0 | I145: - | J145: =SUMIF($C147:$C148,$C147,J147:J148) -> 0 | K145: =SUMIF($C147:$C148,$C147,K147:K148) -> 0 | L145: - | M145: -
C146: УС*** | D146: =IF(D144<>0,IFERROR(D145/D144,"-"),"-") -> 1 | E146: =IF(E144<>0,IFERROR(E145/E144,"-"),"-") -> - | F146: =IF(F144<>0,IFERROR(F145/F144,"-"),"-") -> - | G146: - | H146: =IF(H144<>0,IFERROR(H145/H144,"-"),"-") -> - | I146: - | J146: =IF(J144<>0,IFERROR(J145/J144,"-"),"-") -> - | K146: =IF(K144<>0,IFERROR(K145/K144,"-"),"-") -> - | L146: - | M146: -
A147: 71030 | B147: 1004 | C147: 521 | D147: 81 | G147: 0 | I147: - | L147: - | M147: -
A148: S1030 | B148: 1004 | C148: 321 | D148: 81 | G148: 0 | I148: - | L148: - | M148: -
A149: Субсидии на реализацию мероприятий по обеспечению жильем молодых семей | C149: Всего** | D149: =SUM(D152:D153)-D150 -> 6363 | E149: =SUM(E152:E153)-E150 -> 756 | F149: =SUM(F152:F153)-F150 -> 756 | G149: 0.1188118812 | H149: =SUM(H152:H153)-H150 -> 1701 | I149: 2.25 | J149: =SUM(J152:J153)-J150 -> 0 | K149: =SUM(K152:K153)-K150 -> 1701 | L149: 1 | M149: -
C150: =IF(VALUE(C152)=0,"ВР(ОБ)",IF(VALUE(C152)>540,"ошибка",IF(VALUE(C152)<521,"ошибка",C152&"ОБ"))) -> 521ОБ | D150: =SUMIF($C152:$C153,$C152,D152:D153) -> 3854.4 | E150: =SUMIF($C152:$C153,$C152,E152:E153) -> 604.8 | F150: =SUMIF($C152:$C153,$C152,F152:F153) -> 604.8 | G150: 0.1569115816 | H150: =SUMIF($C152:$C153,$C152,H152:H153) -> 1360.8 | I150: 2.25 | J150: =SUMIF($C152:$C153,$C152,J152:J153) -> 0 | K150: =SUMIF($C152:$C153,$C152,K152:K153) -> 1360.8 | L150: 1 | M150: -
C151: УС*** | D151: =IF(D149<>0,IFERROR(D150/D149,"-"),"-") -> 0.6057520038 | E151: =IF(E149<>0,IFERROR(E150/E149,"-"),"-") -> 0.8 | F151: =IF(F149<>0,IFERROR(F150/F149,"-"),"-") -> 0.8 | G151: 1.320672478 | H151: =IF(H149<>0,IFERROR(H150/H149,"-"),"-") -> 0.8 | I151: 1 | J151: =IF(J149<>0,IFERROR(J150/J149,"-"),"-") -> - | K151: =IF(K149<>0,IFERROR(K150/K149,"-"),"-") -> 0.8 | L151: 1 | M151: -
A152: R4970 | B152: 1004 | C152: 521 | D152: 3854.4 | E152: 604.8 | F152: 604.8 | G152: 0.1569115816 | H152: 1360.8 | I152: 2.25 | K152: 1360.8 | L152: 1 | M152: -
A153: L4970 | B153: 1004 | C153: 322 | D153: 6363 | E153: 756 | F153: 756 | G153: 0.1188118812 | H153: 1701 | I153: 2.25 | K153: 1701 | L153: 1 | M153: -
A154: Резервный фонд Правительства Калининградской области (финансовое обеспечение мероприятий, связанных с предотвращением влияния ухудшения экономической ситуации на развитие отраслей экономики, с профилактикой и устранением последствий распространения коронавирусной инфекции, а также на иные цели, определенные Правительством Калининградской области) | C154: Всего** | D154: =SUM(D157:D158)-D155 -> 587.2 | E154: =SUM(E157:E158)-E155 -> 0 | F154: =SUM(F157:F158)-F155 -> 0 | G154: =IF(D154<>0,IFERROR(F154/D154,"-"),"-") -> 0 | H154: =SUM(H157:H158)-H155 -> 0 | I154: =IF(F154<>0,IFERROR(H154/F154,"-"),"-") -> - | J154: =SUM(J157:J158)-J155 -> 0 | K154: =SUM(K157:K158)-K155 -> 0 | L154: =IF(H154<>0,IFERROR(K154/H154,"-"),"-") -> - | M154: =IF(J154<>0,IFERROR(K154/J154,"-"),"-") -> -
C155: =IF(VALUE(C157)=0,"ВР(ОБ)",IF(VALUE(C157)>540,"ошибка",IF(VALUE(C157)<521,"ошибка",C157&"ОБ"))) -> 521ОБ | D155: =SUMIF($C157:$C158,$C157,D157:D158) -> 585.8 | E155: =SUMIF($C157:$C158,$C157,E157:E158) -> 0 | F155: =SUMIF($C157:$C158,$C157,F157:F158) -> 0 | G155: 0 | H155: =SUMIF($C157:$C158,$C157,H157:H158) -> 0 | I155: - | J155: =SUMIF($C157:$C158,$C157,J157:J158) -> 0 | K155: =SUMIF($C157:$C158,$C157,K157:K158) -> 0 | L155: - | M155: -
C156: УС*** | D156: =IF(D154<>0,IFERROR(D155/D154,"-"),"-") -> 0.9976158038 | E156: =IF(E154<>0,IFERROR(E155/E154,"-"),"-") -> - | F156: =IF(F154<>0,IFERROR(F155/F154,"-"),"-") -> - | G156: - | H156: =IF(H154<>0,IFERROR(H155/H154,"-"),"-") -> - | I156: - | J156: =IF(J154<>0,IFERROR(J155/J154,"-"),"-") -> - | K156: =IF(K154<>0,IFERROR(K155/K154,"-"),"-") -> - | L156: - | M156: -
A157: 21911 | B157: 0701 | C157: 521 | D157: 585.8 | G157: 0 | I157: - | L157: - | M157: -
A158: S1911 | B158: 0701 | C158: 622 | D158: 587.2 | G158: 0 | I158: - | L158: - | M158: -
A159: Резервный фонд Правительства Калининградской области (финансовое обеспечение мероприятий, связанных с предотвращением влияния ухудшения экономической ситуации на развитие отраслей экономики, с профилактикой и устранением последствий распространения коронавирусной инфекции, а также на иные цели, определенные Правительством Калининградской области) | C159: Всего** | D159: =SUM(D162:D164)-D160 -> 6760.4 | E159: =SUM(E162:E164)-E160 -> 0 | F159: =SUM(F162:F164)-F160 -> 0 | G159: 0 | H159: =SUM(H162:H164)-H160 -> 0 | I159: - | J159: =SUM(J162:J164)-J160 -> 0 | K159: =SUM(K162:K164)-K160 -> 0 | L159: - | M159: -
C160: =IF(VALUE(C162)=0,"ВР(ОБ)",IF(VALUE(C162)>540,"ошибка",IF(VALUE(C162)<521,"ошибка",C162&"ОБ"))) -> 521ОБ | D160: =SUMIF($C162:$C164,$C162,D162:D164) -> 6753.6 | E160: =SUMIF($C162:$C164,$C162,E162:E164) -> 0 | F160: =SUMIF($C162:$C164,$C162,F162:F164) -> 0 | G160: 0 | H160: =SUMIF($C162:$C164,$C162,H162:H164) -> 0 | I160: - | J160: =SUMIF($C162:$C164,$C162,J162:J164) -> 0 | K160: =SUMIF($C162:$C164,$C162,K162:K164) -> 0 | L160: - | M160: -
C161: УС*** | D161: =IF(D159<>0,IFERROR(D160/D159,"-"),"-") -> 0.9989941424 | E161: =IF(E159<>0,IFERROR(E160/E159,"-"),"-") -> - | F161: =IF(F159<>0,IFERROR(F160/F159,"-"),"-") -> - | G161: - | H161: =IF(H159<>0,IFERROR(H160/H159,"-"),"-") -> - | I161: - | J161: =IF(J159<>0,IFERROR(J160/J159,"-"),"-") -> - | K161: =IF(K159<>0,IFERROR(K160/K159,"-"),"-") -> - | L161: - | M161: -
A162: 21911 | B162: 0502 | C162: 521 | D162: 6753.6 | G162: 0 | I162: - | L162: - | M162: -
A163: S1911 | B163: 0502 | C163: 811 | D163: 3156.8 | G163: 0 | I163: - | L163: - | M163: -
A164: S1911 | B164: 0502 | C164: 843 | D164: 3603.6 | G164: 0 | I164: - | L164: - | M164: -
A165: Субсидии на обеспечение деятельности муниципальных учреждений, обеспечивающих организацию предоставления государственных и муниципальных услуг по принципу "одного окна" | C165: Всего** | D165: =SUM(D168:D175)-D166 -> 12536.8 | E165: =SUM(E168:E175)-E166 -> 0 | F165: =SUM(F168:F175)-F166 -> 0 | G165: 0 | H165: =SUM(H168:H175)-H166 -> 0 | I165: - | J165: =SUM(J168:J175)-J166 -> 0 | K165: =SUM(K168:K175)-K166 -> 0 | L165: - | M165: -
C166: =IF(VALUE(C168)=0,"ВР(ОБ)",IF(VALUE(C168)>540,"ошибка",IF(VALUE(C168)<521,"ошибка",C168&"ОБ"))) -> 521ОБ | D166: =SUMIF($C168:$C175,$C168,D168:D175) -> 5313 | E166: =SUMIF($C168:$C175,$C168,E168:E175) -> 0 | F166: =SUMIF($C168:$C175,$C168,F168:F175) -> 0 | G166: 0 | H166: =SUMIF($C168:$C175,$C168,H168:H175) -> 0 | I166: - | J166: =SUMIF($C168:$C175,$C168,J168:J175) -> 0 | K166: =SUMIF($C168:$C175,$C168,K168:K175) -> 0 | L166: - | M166: -
C167: УС*** | D167: =IF(D165<>0,IFERROR(D166/D165,"-"),"-") -> 0.4237923553 | E167: =IF(E165<>0,IFERROR(E166/E165,"-"),"-") -> - | F167: =IF(F165<>0,IFERROR(F166/F165,"-"),"-") -> - | G167: - | H167: =IF(H165<>0,IFERROR(H166/H165,"-"),"-") -> - | I167: - | J167: =IF(J165<>0,IFERROR(J166/J165,"-"),"-") -> - | K167: =IF(K165<>0,IFERROR(K166/K165,"-"),"-") -> - | L167: - | M167: -
A168: 71050 | B168: 0113 | C168: 521 | D168: 5313 | G168: 0 | I168: - | L168: - | M168: -
A169: S1050 | B169: 0113 | C169: 111 | D169: 8337.9 | G169: 0 | I169: - | L169: - | M169: -
A170: S1050 | B170: 0113 | C170: 119 | D170: 2390.5 | G170: 0 | I170: - | L170: - | M170: -
A171: S1050 | B171: 0113 | C171: 242 | D171: 821.3 | G171: 0 | I171: - | L171: - | M171: -
A172: S1050 | B172: 0113 | C172: 244 | D172: 986.9 | G172: 0 | I172: - | L172: - | M172: -
A173: S1050 | B173: 0113 | C173: 851 | G173: - | I173: - | L173: - | M173: -
A174: S1050 | B174: 0113 | C174: 853 | D174: 0.2 | G174: 0 | I174: - | L174: - | M174: -
A175: S1050 | B175: 0113 | C175: 112 | G175: - | I175: - | L175: - | M175: -
A176: Субсидии на поддержку муниципальных газет | C176: Всего** | D176: =SUM(D179:D181)-D177 -> 655.1 | E176: =SUM(E179:E181)-E177 -> 1133.4 | F176: =SUM(F179:F181)-F177 -> 1133.4 | G176: 1.730117539 | H176: =SUM(H179:H181)-H177 -> 1060.2 | I176: 0.9354155638 | J176: =SUM(J179:J181)-J177 -> 837.4 | K176: =SUM(K179:K181)-K177 -> 958.2 | L176: 0.9037917374 | M176: 1.144256031
C177: =IF(VALUE(C179)=0,"ВР(ОБ)",IF(VALUE(C179)>540,"ошибка",IF(VALUE(C179)<521,"ошибка",C179&"ОБ"))) -> 521ОБ | D177: =SUMIF($C179:$C181,$C179,D179:D181) -> 458.6 | E177: =SUMIF($C179:$C181,$C179,E179:E181) -> 793.4 | F177: =SUMIF($C179:$C181,$C179,F179:F181) -> 793.4 | G177: 1.730047972 | H177: =SUMIF($C179:$C181,$C179,H179:H181) -> 848.2 | I177: 1.069069826 | J177: =SUMIF($C179:$C181,$C179,J179:J181) -> 793.4 | K177: =SUMIF($C179:$C181,$C179,K179:K181) -> 848.2 | L177: 1 | M177: 1.069069826
C178: УС*** | D178: =IF(D176<>0,IFERROR(D177/D176,"-"),"-") -> 0.7000457945 | E178: =IF(E176<>0,IFERROR(E177/E176,"-"),"-") -> 0.700017646 | F178: =IF(F176<>0,IFERROR(F177/F176,"-"),"-") -> 0.700017646 | G178: 0.9999597905 | H178: =IF(H176<>0,IFERROR(H177/H176,"-"),"-") -> 0.8000377287 | I178: 1.142882231 | J178: =IF(J176<>0,IFERROR(J177/J176,"-"),"-") -> 0.9474564127 | K178: =IF(K176<>0,IFERROR(K177/K176,"-"),"-") -> 0.8852014193 | L178: 1.106449593 | M178: 0.9342924988
A179: 71250 | B179: 1202 | C179: 521 | D179: 458.6 | E179: 793.4 | F179: 793.4 | G179: 1.730047972 | H179: 848.2 | I179: 1.069069826 | J179: 793.4 | K179: 848.2 | L179: 1 | M179: 1.069069826
A180: S1250 | B180: 1202 | C180: 621 | D180: 196.5 | E180: 340 | F180: 340 | G180: 1.730279898 | H180: 212 | I180: 0.6235294118 | J180: 44 | K180: 110 | L180: 0.5188679245 | M180: 2.5
A181: S1250 | B181: 1202 | C181: 622 | D181: 458.6 | E181: 793.4 | F181: 793.4 | G181: 1.730047972 | H181: 848.2 | I181: 1.069069826 | J181: 793.4 | K181: 848.2 | L181: 1 | M181: 1.069069826
A182: Субсидии на обновление материально-технической базы для формирования у обучающихся современных технологических и гуманитарных навыков | C182: Всего** | D182: =SUM(D185:D187)-D183 -> 5053.5 | E182: =SUM(E185:E187)-E183 -> 0 | F182: =SUM(F185:F187)-F183 -> 0 | G182: 0 | H182: =SUM(H185:H187)-H183 -> 1158.8 | I182: - | J182: =SUM(J185:J187)-J183 -> 0 | K182: =SUM(K185:K187)-K183 -> 1156.5 | L182: 0.9980151881 | M182: -
C183: =IF(VALUE(C185)=0,"ВР(ОБ)",IF(VALUE(C185)>540,"ошибка",IF(VALUE(C185)<521,"ошибка",C185&"ОБ"))) -> 521ОБ | D183: =SUMIF($C185:$C187,$C185,D185:D187) -> 5053.4 | E183: =SUMIF($C185:$C187,$C185,E185:E187) -> 0 | F183: =SUMIF($C185:$C187,$C185,F185:F187) -> 0 | G183: 0 | H183: =SUMIF($C185:$C187,$C185,H185:H187) -> 1157.6 | I183: - | J183: =SUMIF($C185:$C187,$C185,J185:J187) -> 0 | K183: =SUMIF($C185:$C187,$C185,K185:K187) -> 1155.3 | L183: 0.9980131306 | M183: -
C184: УС*** | D184: =IF(D182<>0,IFERROR(D183/D182,"-"),"-") -> 0.9999802117 | E184: =IF(E182<>0,IFERROR(E183/E182,"-"),"-") -> - | F184: =IF(F182<>0,IFERROR(F183/F182,"-"),"-") -> - | G184: - | H184: =IF(H182<>0,IFERROR(H183/H182,"-"),"-") -> 0.998964446 | I184: - | J184: =IF(J182<>0,IFERROR(J183/J182,"-"),"-") -> - | K184: =IF(K182<>0,IFERROR(K183/K182,"-"),"-") -> 0.9989623865 | L184: 0.9999979384 | M184: -
A185: 51690 | B185: 0702 | C185: 521 | D185: 5053.4 | G185: 0 | H185: 1157.6 | I185: - | K185: 1155.3 | L185: 0.9980131306 | M185: -
A186: 51690 | B186: 0702 | C186: 242 | D186: 3568.7 | G186: 0 | H186: 962.1 | I186: - | K186: 962.1 | L186: 1 | M186: -
A187: 51690 | B187: 0702 | C187: 244 | D187: 1484.8 | G187: 0 | H187: 196.7 | I187: - | K187: 194.4 | L187: 0.9883070666 | M187: -
A188: Субсидии на осуществление капитальных вложений в объекты муниципальной собственности | C188: Всего** | D188: =SUM(D191:D193)-D189 -> 2138.1 | E188: =SUM(E191:E193)-E189 -> 443070.1 | F188: =SUM(F191:F193)-F189 -> 312100.3 | G188: 145.970862 | H188: =SUM(H191:H193)-H189 -> 0 | I188: 0 | J188: =SUM(J191:J193)-J189 -> 41940.8 | K188: =SUM(K191:K193)-K189 -> 0 | L188: - | M188: 0
C189: =IF(VALUE(C191)=0,"ВР(ОБ)",IF(VALUE(C191)>540,"ошибка",IF(VALUE(C191)<521,"ошибка",C191&"ОБ"))) -> 522ОБ | D189: =SUMIF($C191:$C193,$C191,D191:D193) -> 2091.1 | E189: =SUMIF($C191:$C193,$C191,E191:E193) -> 442407.6 | F189: =SUMIF($C191:$C193,$C191,F191:F193) -> 311443.4 | G189: 148.9375927 | H189: =SUMIF($C191:$C193,$C191,H191:H193) -> 0 | I189: 0 | J189: =SUMIF($C191:$C193,$C191,J191:J193) -> 41459.7 | K189: =SUMIF($C191:$C193,$C191,K191:K193) -> 0 | L189: - | M189: 0
C190: УС*** | D190: =IF(D188<>0,IFERROR(D189/D188,"-"),"-") -> 0.9780178663 | E190: =IF(E188<>0,IFERROR(E189/E188,"-"),"-") -> 0.9985047513 | F190: =IF(F188<>0,IFERROR(F189/F188,"-"),"-") -> 0.9978952279 | G190: 1.020324129 | H190: =IF(H188<>0,IFERROR(H189/H188,"-"),"-") -> - | I190: - | J190: =IF(J188<>0,IFERROR(J189/J188,"-"),"-") -> 0.9885290695 | K190: =IF(K188<>0,IFERROR(K189/K188,"-"),"-") -> - | L190: - | M190: -
A191: 94000 | B191: 0502 | C191: 522 | D191: 2091.1 | E191: 442407.6 | F191: 311443.4 | G191: 148.9375927 | I191: 0 | J191: 41459.7 | L191: - | M191: 0
A192: S4000 | B192: 0502 | C192: 244 | D192: 47 | G192: 0 | I192: - | L192: - | M192: -
A193: S4000 | B193: 0502 | C193: 414 | D193: 2091.1 | E193: 443070.1 | F193: 312100.3 | G193: 149.2517335 | I193: 0 | J193: 41940.8 | L193: - | M193: 0
A194: Субсидии на обеспечение комплексного развития сельских территорий (распределительные газопроводы низкого давления и газопроводы-вводы к жилым домам в пос. Киевское, пос. Широкополье, пос. Луговское, пос. Надеждино, пос. Привольное, пос. Новосельское, пос. Иркутское Зеленоградского района) | C194: Всего** | D194: =SUM(D197:D199)-D195 -> 14143.5 | E194: =SUM(E197:E199)-E195 -> 29191.6 | F194: =SUM(F197:F199)-F195 -> 7793.6 | G194: 0.5510375791 | H194: =SUM(H197:H199)-H195 -> 0 | I194: 0 | J194: =SUM(J197:J199)-J195 -> 7749.8 | K194: =SUM(K197:K199)-K195 -> 0 | L194: - | M194: 0
C195: =IF(VALUE(C197)=0,"ВР(ОБ)",IF(VALUE(C197)>540,"ошибка",IF(VALUE(C197)<521,"ошибка",C197&"ОБ"))) -> 522ОБ | D195: =SUMIF($C197:$C199,$C197,D197:D199) -> 13966.7 | E195: =SUMIF($C197:$C199,$C197,E197:E199) -> 29186.3 | F195: =SUMIF($C197:$C199,$C197,F197:F199) -> 7792.4 | G195: 0.5579270694 | H195: =SUMIF($C197:$C199,$C197,H197:H199) -> 0 | I195: 0 | J195: =SUMIF($C197:$C199,$C197,J197:J199) -> 7748.6 | K195: =SUMIF($C197:$C199,$C197,K197:K199) -> 0 | L195: - | M195: 0
C196: УС*** | D196: =IF(D194<>0,IFERROR(D195/D194,"-"),"-") -> 0.9874995581 | E196: =IF(E194<>0,IFERROR(E195/E194,"-"),"-") -> 0.9998184409 | F196: =IF(F194<>0,IFERROR(F195/F194,"-"),"-") -> 0.9998460275 | G196: 1.012502759 | H196: =IF(H194<>0,IFERROR(H195/H194,"-"),"-") -> - | I196: - | J196: =IF(J194<>0,IFERROR(J195/J194,"-"),"-") -> 0.9998451573 | K196: =IF(K194<>0,IFERROR(K195/K194,"-"),"-") -> - | L196: - | M196: -
A197: R5769 | B197: 0502 | C197: 522 | D197: 13966.7 | E197: 29186.3 | F197: 7792.4 | G197: 0.5579270694 | I197: 0 | J197: 7748.6 | L197: - | M197: 0
A198: L5769 | B198: 0502 | C198: 465 | D198: 14143.5 | E198: 7793.6 | F198: 7793.6 | G198: 0.5510375791 | I198: 0 | J198: 7749.8 | L198: - | M198: 0
A199: L5769 | B199: 0502 | C199: 414 | E199: 21398 | G199: - | I199: - | L199: - | M199: -
A200: Субсидии на осуществление капитальных вложений в объекты муниципальной собственности (Разработка проектной и рабочей документации по объекту "Газификация пос. Кострово, пос. Логвино Зеленоградского района") | C200: Всего** | D200: =SUM(D203:D204)-D201 -> 0 | E200: =SUM(E203:E204)-E201 -> 0 | F200: =SUM(F203:F204)-F201 -> 0 | G200: - | H200: =SUM(H203:H204)-H201 -> 3575.6 | I200: - | J200: =SUM(J203:J204)-J201 -> 0 | K200: =SUM(K203:K204)-K201 -> 0 | L200: 0 | M200: -
C201: =IF(VALUE(C203)=0,"ВР(ОБ)",IF(VALUE(C203)>540,"ошибка",IF(VALUE(C203)<521,"ошибка",C203&"ОБ"))) -> 522ОБ | D201: =SUMIF($C203:$C204,$C203,D203:D204) -> 0 | E201: =SUMIF($C203:$C204,$C203,E203:E204) -> 0 | F201: =SUMIF($C203:$C204,$C203,F203:F204) -> 0 | G201: - | H201: =SUMIF($C203:$C204,$C203,H203:H204) -> 3575.6 | I201: - | J201: =SUMIF($C203:$C204,$C203,J203:J204) -> 0 | K201: =SUMIF($C203:$C204,$C203,K203:K204) -> 0 | L201: 0 | M201: -
C202: УС*** | D202: =IF(D200<>0,IFERROR(D201/D200,"-"),"-") -> - | E202: =IF(E200<>0,IFERROR(E201/E200,"-"),"-") -> - | F202: =IF(F200<>0,IFERROR(F201/F200,"-"),"-") -> - | G202: - | H202: =IF(H200<>0,IFERROR(H201/H200,"-"),"-") -> 1 | I202: - | J202: =IF(J200<>0,IFERROR(J201/J200,"-"),"-") -> - | K202: =IF(K200<>0,IFERROR(K201/K200,"-"),"-") -> - | L202: - | M202: -
A203: 94042 | B203: 0502 | C203: 522 | G203: - | H203: 3575.6 | I203: - | L203: 0 | M203: -
... 438 more rows

Sheet Служебный (hidden)
A1: #parm1Tmplt1 | C1: Всего** | D1: =SUM(D4:D5)-D2 -> 0 | E1: =SUM(E4:E5)-E2 -> 0 | F1: =SUM(F4:F5)-F2 -> 0 | G1: =IF(D1<>0,IFERROR(F1/D1,"-"),"-") -> - | H1: =SUM(H4:H5)-H2 -> 0 | I1: =IF(F1<>0,IFERROR(H1/F1,"-"),"-") -> - | J1: =SUM(J4:J5)-J2 -> 0 | K1: =SUM(K4:K5)-K2 -> 0 | L1: =IF(H1<>0,IFERROR(K1/H1,"-"),"-") -> - | M1: =IF(J1<>0,IFERROR(K1/J1,"-"),"-") -> -
C2: =IF(VALUE(C4)=0,"ВР(ОБ)",IF(VALUE(C4)>540,"ошибка",IF(VALUE(C4)<521,"ошибка",C4&"ОБ"))) ->  | D2: =SUMIF($C4:$C5,$C4,D4:D5) -> 0 | E2: =SUMIF($C4:$C5,$C4,E4:E5) -> 0 | F2: =SUMIF($C4:$C5,$C4,F4:F5) -> 0 | G2: - | H2: =SUMIF($C4:$C5,$C4,H4:H5) -> 0 | I2: - | J2: =SUMIF($C4:$C5,$C4,J4:J5) -> 0 | K2: =SUMIF($C4:$C5,$C4,K4:K5) -> 0 | L2: - | M2: -
C3: УС*** | D3: =IF(D1<>0,IFERROR(D2/D1,"-"),"-") -> - | E3: =IF(E1<>0,IFERROR(E2/E1,"-"),"-") -> - | F3: =IF(F1<>0,IFERROR(F2/F1,"-"),"-") -> - | G3: - | H3: =IF(H1<>0,IFERROR(H2/H1,"-"),"-") -> - | I3: - | J3: =IF(J1<>0,IFERROR(J2/J1,"-"),"-") -> - | K3: =IF(K1<>0,IFERROR(K2/K1,"-"),"-") -> - | L3: - | M3: -
C4: #parm2Tmplt1 | G4: - | I4: - | L4: - | M4: -
G5: - | I5: - | L5: - | M5: -
G6: - | I6: - | L6: - | M6: -
G7: - | I7: - | L7: - | M7: -
G8: - | I8: - | L8: - | M8: -
G9: - | I9: - | L9: - | M9: -
G10: - | I10: - | L10: - | M10: -
G11: - | I11: - | L11: - | M11: -
G12: - | I12: - | L12: - | M12: -
G13: - | I13: - | L13: - | M13: -
G14: - | I14: - | L14: - | M14: -
G15: - | I15: - | L15: - | M15: -
G16: - | I16: - | L16: - | M16: -
G17: - | I17: - | L17: - | M17: -
G18: - | I18: - | L18: - | M18: -
G19: - | I19: - | L19: - | M19: -
G20: - | I20: - | L20: - | M20: -
G21: - | I21: - | L21: - | M21: -
G22: - | I22: - | L22: - | M22: -
G23: - | I23: - | L23: - | M23: -
G24: - | I24: - | L24: - | M24: -
G25: - | I25: - | L25: - | M25: -
G26: - | I26: - | L26: - | M26: -
G27: - | I27: - | L27: - | M27: -
G28: - | I28: - | L28: - | M28: -
G29: - | I29: - | L29: - | M29: -
G30: - | I30: - | L30: - | M30: -
G31: - | I31: - | L31: - | M31: -
G32: - | I32: - | L32: - | M32: -
G33: - | I33: - | L33: - | M33: -
G34: - | I34: - | L34: - | M34: -
G35: - | I35: - | L35: - | M35: -
G36: - | I36: - | L36: - | M36: -
G37: - | I37: - | L37: - | M37: -
G38: - | I38: - | L38: - | M38: -
G39: - | I39: - | L39: - | M39: -
G40: - | I40: - | L40: - | M40: -
G41: - | I41: - | L41: - | M41: -
G42: - | I42: - | L42: - | M42: -
G43: - | I43: - | L43: - | M43: -
G44: - | I44: - | L44: - | M44: -
G45: - | I45: - | L45: - | M45: -
G46: - | I46: - | L46: - | M46: -
G47: - | I47: - | L47: - | M47: -
G48: - | I48: - | L48: - | M48: -
G49: - | I49: - | L49: - | M49: -
G50: - | I50: - | L50: - | M50: -
G51: - | I51: - | L51: - | M51: -
G52: - | I52: - | L52: - | M52: -
G53: - | I53: - | L53: - | M53: -
G54: - | I54: - | L54: - | M54: -
G55: - | I55: - | L55: - | M55: -
G56: - | I56: - | L56: - | M56: -
G57: - | I57: - | L57: - | M57: -
G58: - | I58: - | L58: - | M58: -
G59: - | I59: - | L59: - | M59: -
G60: - | I60: - | L60: - | M60: -
G61: - | I61: - | L61: - | M61: -
G62: - | I62: - | L62: - | M62: -
G63: - | I63: - | L63: - | M63: -
G64: - | I64: - | L64: - | M64: -
G65: - | I65: - | L65: - | M65: -
G66: - | I66: - | L66: - | M66: -
G67: - | I67: - | L67: - | M67: -
G68: - | I68: - | L68: - | M68: -
G69: - | I69: - | L69: - | M69: -
G70: - | I70: - | L70: - | M70: -
G71: - | I71: - | L71: - | M71: -
G72: - | I72: - | L72: - | M72: -
G73: - | I73: - | L73: - | M73: -
G74: - | I74: - | L74: - | M74: -
G75: - | I75: - | L75: - | M75: -
G76: - | I76: - | L76: - | M76: -
G77: - | I77: - | L77: - | M77: -
G78: - | I78: - | L78: - | M78: -
G79: - | I79: - | L79: - | M79: -
G80: - | I80: - | L80: - | M80: -
G81: - | I81: - | L81: - | M81: -
G82: - | I82: - | L82: - | M82: -
G83: - | I83: - | L83: - | M83: -
G84: - | I84: - | L84: - | M84: -
G85: - | I85: - | L85: - | M85: -
G86: - | I86: - | L86: - | M86: -
G87: - | I87: - | L87: - | M87: -
G88: - | I88: - | L88: - | M88: -
G89: - | I89: - | L89: - | M89: -
G90: - | I90: - | L90: - | M90: -
G91: - | I91: - | L91: - | M91: -
G92: - | I92: - | L92: - | M92: -
G93: - | I93: - | L93: - | M93: -
G94: - | I94: - | L94: - | M94: -
G95: - | I95: - | L95: - | M95: -
G96: - | I96: - | L96: - | M96: -
G97: - | I97: - | L97: - | M97: -
G98: - | I98: - | L98: - | M98: -
G99: - | I99: - | L99: - | M99: -
G100: - | I100: - | L100: - | M100: -
G101: - | I101: - | L101: - | M101: -
G102: - | I102: - | L102: - | M102: -
G103: - | I103: - | L103: - | M103: -
G104: - | I104: - | L104: - | M104: -
G105: - | I105: - | L105: - | M105: -
G106: - | I106: - | L106: - | M106: -
G107: - | I107: - | L107: - | M107: -
G108: - | I108: - | L108: - | M108: -
G109: - | I109: - | L109: - | M109: -
G110: - | I110: - | L110: - | M110: -
G111: - | I111: - | L111: - | M111: -
G112: - | I112: - | L112: - | M112: -
G113: - | I113: - | L113: - | M113: -
G114: - | I114: - | L114: - | M114: -
G115: - | I115: - | L115: - | M115: -
G116: - | I116: - | L116: - | M116: -
G117: - | I117: - | L117: - | M117: -
G118: - | I118: - | L118: - | M118: -
G119: - | I119: - | L119: - | M119: -
G120: - | I120: - | L120: - | M120: -
G121: - | I121: - | L121: - | M121: -
G122: - | I122: - | L122: - | M122: -
G123: - | I123: - | L123: - | M123: -
G124: - | I124: - | L124: - | M124: -
G125: - | I125: - | L125: - | M125: -
G126: - | I126: - | L126: - | M126: -
G127: - | I127: - | L127: - | M127: -
G128: - | I128: - | L128: - | M128: -
G129: - | I129: - | L129: - | M129: -
G130: - | I130: - | L130: - | M130: -
G131: - | I131: - | L131: - | M131: -
G132: - | I132: - | L132: - | M132: -
G133: - | I133: - | L133: - | M133: -
G134: - | I134: - | L134: - | M134: -
G135: - | I135: - | L135: - | M135: -
G136: - | I136: - | L136: - | M136: -
G137: - | I137: - | L137: - | M137: -
G138: - | I138: - | L138: - | M138: -
G139: - | I139: - | L139: - | M139: -
G140: - | I140: - | L140: - | M140: -
G141: - | I141: - | L141: - | M141: -
G142: - | I142: - | L142: - | M142: -
G143: - | I143: - | L143: - | M143: -
G144: - | I144: - | L144: - | M144: -
G145: - | I145: - | L145: - | M145: -
G146: - | I146: - | L146: - | M146: -
G147: - | I147: - | L147: - | M147: -
G148: - | I148: - | L148: - | M148: -
G149: - | I149: - | L149: - | M149: -
G150: - | I150: - | L150: - | M150: -
G151: - | I151: - | L151: - | M151: -
G152: - | I152: - | L152: - | M152: -
G153: - | I153: - | L153: - | M153: -
G154: - | I154: - | L154: - | M154: -
G155: - | I155: - | L155: - | M155: -
G156: - | I156: - | L156: - | M156: -
G157: - | I157: - | L157: - | M157: -
G158: - | I158: - | L158: - | M158: -
G159: - | I159: - | L159: - | M159: -
G160: - | I160: - | L160: - | M160: -
G161: - | I161: - | L161: - | M161: -
G162: - | I162: - | L162: - | M162: -
G163: - | I163: - | L163: - | M163: -
G164: - | I164: - | L164: - | M164: -
G165: - | I165: - | L165: - | M165: -
G166: - | I166: - | L166: - | M166: -
G167: - | I167: - | L167: - | M167: -
G168: - | I168: - | L168: - | M168: -
G169: - | I169: - | L169: - | M169: -
G170: - | I170: - | L170: - | M170: -
G171: - | I171: - | L171: - | M171: -
G172: - | I172: - | L172: - | M172: -
G173: - | I173: - | L173: - | M173: -
G174: - | I174: - | L174: - | M174: -
G175: - | I175: - | L175: - | M175: -
G176: - | I176: - | L176: - | M176: -
G177: - | I177: - | L177: - | M177: -
G178: - | I178: - | L178: - | M178: -
